﻿Body Name ,Supp ID,,Supplier Name,Service Area Category,Supp Grp,Period,Invoice Date,TT,Unique Invoice Reference ,,Inv Amount,Account,Expenditure Description,Cost C,Cost Centre Name,Posted Amount
Nottinghamshire Fire and Rescue Service,103874,Reflect Recruitment Group Limited,Reflect Recruitment Group Limited,Management & Support Services,5,202404,03/07/2023,P6,9107126,-924.41 ,924.41 ,1005,Admin Agency Staff,2058,HR Support,770.34 
Nottinghamshire Fire and Rescue Service,103874,Reflect Recruitment Group Limited,Reflect Recruitment Group Limited,Management & Support Services,5,202404,10/07/2023,P6,9107216,-924.41 ,924.41 ,1005,Admin Agency Staff,2058,HR Support,770.34 
Nottinghamshire Fire and Rescue Service,103874,Reflect Recruitment Group Limited,Reflect Recruitment Group Limited,Management & Support Services,5,202404,19/06/2023,P6,9107326,-924.41 ,924.41 ,1005,Admin Agency Staff,2058,HR Support,770.34 
Nottinghamshire Fire and Rescue Service,103874,Reflect Recruitment Group Limited,Reflect Recruitment Group Limited,Management & Support Services,5,202404,17/07/2023,P6,9107391,-724.54 ,724.54 ,1005,Admin Agency Staff,2058,HR Support,603.78 
Nottinghamshire Fire and Rescue Service,103874,Reflect Recruitment Group Limited,Reflect Recruitment Group Limited,Management & Support Services,5,202404,24/07/2023,P6,9107424,-724.54 ,724.54 ,1005,Admin Agency Staff,2058,HR Support,603.78 
Nottinghamshire Fire and Rescue Service,104278,The Big Teacher Ltd,The Big Teacher Ltd,Management & Support Services,5,202404,14/07/2023,P6,9107192,-394.00 ,394.00 ,1801,Training,2059,Corporate Training,197.00 
Nottinghamshire Fire and Rescue Service,104038,Green Risk Assessment Ltd,Green Risk Assessment Ltd,Management & Support Services,5,202404,02/07/2023,P6,9107253,"-5,035.20 ","5,035.20 ",1801,Training,2059,Corporate Training,"4,196.00 "
Nottinghamshire Fire and Rescue Service,104134,Xact Consultancy & Training Limited,Xact Consultancy & Training Limited,"Statutory Inspection, Certification & Enforcement",5,202404,10/07/2023,P6,9107256,"-1,014.00 ","1,014.00 ",1801,Training,2021,Fire Protection,845.00 
Nottinghamshire Fire and Rescue Service,103378,R3 Safety & Rescue Limited,R3 Safety & Rescue Limited,Management & Support Services,5,202404,17/07/2023,P6,9107279,"-1,302.00 ","1,302.00 ",1801,Training,2059,Corporate Training,"1,085.00 "
Nottinghamshire Fire and Rescue Service,103378,R3 Safety & Rescue Limited,R3 Safety & Rescue Limited,Management & Support Services,5,202404,17/07/2023,P6,9107280,"-1,302.00 ","1,302.00 ",1801,Training,2059,Corporate Training,"1,085.00 "
Nottinghamshire Fire and Rescue Service,103378,R3 Safety & Rescue Limited,R3 Safety & Rescue Limited,Management & Support Services,5,202404,18/07/2023,P6,9107297,-356.66 ,356.66 ,1801,Training,2059,Corporate Training,297.22 
Nottinghamshire Fire and Rescue Service,103378,R3 Safety & Rescue Limited,R3 Safety & Rescue Limited,Management & Support Services,5,202404,18/07/2023,P6,9107311,"-1,302.00 ","1,302.00 ",1801,Training,2059,Corporate Training,"1,085.00 "
Nottinghamshire Fire and Rescue Service,104168,ioda Limited,ioda Limited,Management & Support Services,5,202404,17/07/2023,P6,9107317,"-1,188.00 ","1,188.00 ",1801,Training,2054,Equalities Team,990.00 
Nottinghamshire Fire and Rescue Service,100019,Nuffield Sailing Centre,Nuffield Sailing Centre,Management & Support Services,1,202404,17/07/2023,P6,9107324,-880.00 ,880.00 ,1801,Training,2059,Corporate Training,40.00 
Nottinghamshire Fire and Rescue Service,104283,Artemis Training and Development Limited,Artemis Training and Development Limited,Management & Support Services,5,202404,19/07/2023,P6,9107382,"-2,940.00 ","2,940.00 ",1801,Training,2059,Corporate Training,"2,450.00 "
Nottinghamshire Fire and Rescue Service,104189,TNR Coaching Limited,TNR Coaching Limited,Management & Support Services,5,202404,20/07/2023,P6,9107392,-250.80 ,250.80 ,1801,Training,2059,Corporate Training,209.00 
Nottinghamshire Fire and Rescue Service,103378,R3 Safety & Rescue Limited,R3 Safety & Rescue Limited,Management & Support Services,5,202404,26/07/2023,P6,9107449,"-4,122.00 ","4,122.00 ",1801,Training,2059,Corporate Training,"3,435.00 "
Nottinghamshire Fire and Rescue Service,103866,Richardson Associates (UK) Limited,Richardson Associates (UK) Limited,Management & Support Services,5,202404,26/07/2023,P6,9107453,"-2,520.00 ","2,520.00 ",1801,Training,2054,Equalities Team,"2,100.00 "
Nottinghamshire Fire and Rescue Service,103378,R3 Safety & Rescue Limited,R3 Safety & Rescue Limited,Management & Support Services,5,202404,26/07/2023,P6,9107456,"-4,122.00 ","4,122.00 ",1801,Training,2059,Corporate Training,"3,435.00 "
Nottinghamshire Fire and Rescue Service,103866,Richardson Associates (UK) Limited,Richardson Associates (UK) Limited,Management & Support Services,5,202404,26/07/2023,P6,9107468,-264.00 ,264.00 ,1801,Training,2054,Equalities Team,220.00 
Nottinghamshire Fire and Rescue Service,103866,Richardson Associates (UK) Limited,Richardson Associates (UK) Limited,Management & Support Services,5,202404,26/06/2023,P6,9107470,-528.00 ,528.00 ,1801,Training,2054,Equalities Team,440.00 
Nottinghamshire Fire and Rescue Service,101645,Ricardo-AEA Ltd,Ricardo-AEA Ltd,Operational Responses,1,202404,28/07/2023,P6,9107474,"-3,078.00 ","3,078.00 ",1801,Training,2013,Service Delivery,"2,565.00 "
Nottinghamshire Fire and Rescue Service,101745,Networking Women In The Fire Service,Networking Women In The Fire Service,Management & Support Services,1,202404,30/06/2023,P6,9107334,-500.00 ,500.00 ,1804,Training - Inclusion,2054,Equalities Team,500.00 
Nottinghamshire Fire and Rescue Service,100557,NCC Sundry Debtors,NCC Sundry Debtors,Management & Support Services,4,202404,02/06/2023,P6,9107143,-358.20 ,358.20 ,1850,Recruitment Advertising,2049,Professional Support,298.50 
Nottinghamshire Fire and Rescue Service,103377,Flat Fee Recruiter Limited,Flat Fee Recruiter Limited,Management & Support Services,5,202404,04/07/2023,P6,9107203,-322.80 ,322.80 ,1850,Recruitment Advertising,2049,Professional Support,269.00 
Nottinghamshire Fire and Rescue Service,103377,Flat Fee Recruiter Limited,Flat Fee Recruiter Limited,Management & Support Services,5,202404,06/07/2023,P6,9107204,-322.80 ,322.80 ,1850,Recruitment Advertising,2049,Professional Support,269.00 
Nottinghamshire Fire and Rescue Service,103377,Flat Fee Recruiter Limited,Flat Fee Recruiter Limited,Management & Support Services,5,202404,06/07/2023,P6,9107205,-322.80 ,322.80 ,1850,Recruitment Advertising,2049,Professional Support,269.00 
Nottinghamshire Fire and Rescue Service,103377,Flat Fee Recruiter Limited,Flat Fee Recruiter Limited,Management & Support Services,5,202404,11/07/2023,P6,9107296,-322.80 ,322.80 ,1850,Recruitment Advertising,2049,Professional Support,269.00 
Nottinghamshire Fire and Rescue Service,103377,Flat Fee Recruiter Limited,Flat Fee Recruiter Limited,Management & Support Services,5,202404,14/07/2023,P6,9107396,-322.80 ,322.80 ,1850,Recruitment Advertising,2049,Professional Support,269.00 
Nottinghamshire Fire and Rescue Service,103923,Bupa UK Insurance Services,Bupa UK Insurance Services,Management & Support Services,5,202404,29/06/2023,P6,9107067,"-3,290.09 ","3,290.09 ",1860,Employee Benefits Schemes,2049,Professional Support,"3,290.09 "
Nottinghamshire Fire and Rescue Service,102280,Amptron Electrical Services,Amptron Electrical Services,Operational Responses,1,202404,20/06/2023,P6,9107054,"-42,040.53 ","42,040.53 ",2000,Buildings Repairs and Maintenance - Reactive,1024,Eastwood,"24,248.02 "
Nottinghamshire Fire and Rescue Service,102280,Amptron Electrical Services,Amptron Electrical Services,Operational Responses,1,202404,20/06/2023,P6,9107054,"-42,040.53 ","42,040.53 ",2000,Buildings Repairs and Maintenance - Reactive,1027,Carlton,"10,785.76 "
Nottinghamshire Fire and Rescue Service,102280,Amptron Electrical Services,Amptron Electrical Services,Operational Responses,1,202404,21/06/2023,P6,9107055,"-34,342.50 ","34,342.50 ",2000,Buildings Repairs and Maintenance - Reactive,1001,Mansfield,"4,324.02 "
Nottinghamshire Fire and Rescue Service,102280,Amptron Electrical Services,Amptron Electrical Services,Operational Responses,1,202404,21/06/2023,P6,9107055,"-34,342.50 ","34,342.50 ",2000,Buildings Repairs and Maintenance - Reactive,1002,Blidworth,357.30 
Nottinghamshire Fire and Rescue Service,102280,Amptron Electrical Services,Amptron Electrical Services,Operational Responses,1,202404,21/06/2023,P6,9107055,"-34,342.50 ","34,342.50 ",2000,Buildings Repairs and Maintenance - Reactive,1005,Ashfield,"3,306.55 "
Nottinghamshire Fire and Rescue Service,102280,Amptron Electrical Services,Amptron Electrical Services,Operational Responses,1,202404,21/06/2023,P6,9107055,"-34,342.50 ","34,342.50 ",2000,Buildings Repairs and Maintenance - Reactive,1010,Harworth,257.76 
Nottinghamshire Fire and Rescue Service,102280,Amptron Electrical Services,Amptron Electrical Services,Operational Responses,1,202404,21/06/2023,P6,9107055,"-34,342.50 ","34,342.50 ",2000,Buildings Repairs and Maintenance - Reactive,1013,Tuxford,731.97 
Nottinghamshire Fire and Rescue Service,102280,Amptron Electrical Services,Amptron Electrical Services,Operational Responses,1,202404,21/06/2023,P6,9107055,"-34,342.50 ","34,342.50 ",2000,Buildings Repairs and Maintenance - Reactive,1016,Newark,"2,035.36 "
Nottinghamshire Fire and Rescue Service,102280,Amptron Electrical Services,Amptron Electrical Services,Operational Responses,1,202404,21/06/2023,P6,9107055,"-34,342.50 ","34,342.50 ",2000,Buildings Repairs and Maintenance - Reactive,1017,Bingham,"2,706.94 "
Nottinghamshire Fire and Rescue Service,102280,Amptron Electrical Services,Amptron Electrical Services,Operational Responses,1,202404,21/06/2023,P6,9107055,"-34,342.50 ","34,342.50 ",2000,Buildings Repairs and Maintenance - Reactive,1019,West Bridgford,"1,154.62 "
Nottinghamshire Fire and Rescue Service,102280,Amptron Electrical Services,Amptron Electrical Services,Operational Responses,1,202404,21/06/2023,P6,9107055,"-34,342.50 ","34,342.50 ",2000,Buildings Repairs and Maintenance - Reactive,1020,Stockhill,980.48 
Nottinghamshire Fire and Rescue Service,102280,Amptron Electrical Services,Amptron Electrical Services,Operational Responses,1,202404,21/06/2023,P6,9107055,"-34,342.50 ","34,342.50 ",2000,Buildings Repairs and Maintenance - Reactive,1023,Stapleford,"1,892.49 "
Nottinghamshire Fire and Rescue Service,102280,Amptron Electrical Services,Amptron Electrical Services,Operational Responses,1,202404,21/06/2023,P6,9107055,"-34,342.50 ","34,342.50 ",2000,Buildings Repairs and Maintenance - Reactive,1026,Arnold,"1,129.30 "
Nottinghamshire Fire and Rescue Service,102280,Amptron Electrical Services,Amptron Electrical Services,Operational Responses,1,202404,21/06/2023,P6,9107055,"-34,342.50 ","34,342.50 ",2000,Buildings Repairs and Maintenance - Reactive,1028,East Leake,"3,392.91 "
Nottinghamshire Fire and Rescue Service,102280,Amptron Electrical Services,Amptron Electrical Services,Operational Responses,1,202404,21/06/2023,P6,9107055,"-34,342.50 ","34,342.50 ",2000,Buildings Repairs and Maintenance - Reactive,1029,Highfields Station,"4,319.27 "
Nottinghamshire Fire and Rescue Service,102280,Amptron Electrical Services,Amptron Electrical Services,Management & Support Services,1,202404,21/06/2023,P6,9107055,"-34,342.50 ","34,342.50 ",2000,Buildings Repairs and Maintenance - Reactive,1030,Service Development Centre,"1,334.16 "
Nottinghamshire Fire and Rescue Service,102280,Amptron Electrical Services,Amptron Electrical Services,Management & Support Services,1,202404,21/06/2023,P6,9107055,"-34,342.50 ","34,342.50 ",2000,Buildings Repairs and Maintenance - Reactive,1035,Headquarters,695.61 
Nottinghamshire Fire and Rescue Service,102280,Amptron Electrical Services,Amptron Electrical Services,Operational Responses,1,202404,30/06/2023,P6,9107082,"-7,541.24 ","7,541.24 ",2000,Buildings Repairs and Maintenance - Reactive,1001,Mansfield,491.53 
Nottinghamshire Fire and Rescue Service,102280,Amptron Electrical Services,Amptron Electrical Services,Operational Responses,1,202404,30/06/2023,P6,9107082,"-7,541.24 ","7,541.24 ",2000,Buildings Repairs and Maintenance - Reactive,1003,London Road,306.80 
Nottinghamshire Fire and Rescue Service,102280,Amptron Electrical Services,Amptron Electrical Services,Operational Responses,1,202404,30/06/2023,P6,9107082,"-7,541.24 ","7,541.24 ",2000,Buildings Repairs and Maintenance - Reactive,1005,Ashfield,137.89 
Nottinghamshire Fire and Rescue Service,102280,Amptron Electrical Services,Amptron Electrical Services,Operational Responses,1,202404,30/06/2023,P6,9107082,"-7,541.24 ","7,541.24 ",2000,Buildings Repairs and Maintenance - Reactive,1006,Edwinstowe,618.93 
Nottinghamshire Fire and Rescue Service,102280,Amptron Electrical Services,Amptron Electrical Services,Operational Responses,1,202404,30/06/2023,P6,9107082,"-7,541.24 ","7,541.24 ",2000,Buildings Repairs and Maintenance - Reactive,1008,Worksop,50.43 
Nottinghamshire Fire and Rescue Service,102280,Amptron Electrical Services,Amptron Electrical Services,Operational Responses,1,202404,30/06/2023,P6,9107082,"-7,541.24 ","7,541.24 ",2000,Buildings Repairs and Maintenance - Reactive,1010,Harworth,"3,556.28 "
Nottinghamshire Fire and Rescue Service,102280,Amptron Electrical Services,Amptron Electrical Services,Operational Responses,1,202404,30/06/2023,P6,9107082,"-7,541.24 ","7,541.24 ",2000,Buildings Repairs and Maintenance - Reactive,1013,Tuxford,427.59 
Nottinghamshire Fire and Rescue Service,102280,Amptron Electrical Services,Amptron Electrical Services,Operational Responses,1,202404,30/06/2023,P6,9107082,"-7,541.24 ","7,541.24 ",2000,Buildings Repairs and Maintenance - Reactive,1020,Stockhill,57.53 
Nottinghamshire Fire and Rescue Service,102280,Amptron Electrical Services,Amptron Electrical Services,Operational Responses,1,202404,30/06/2023,P6,9107082,"-7,541.24 ","7,541.24 ",2000,Buildings Repairs and Maintenance - Reactive,1027,Carlton,586.96 
Nottinghamshire Fire and Rescue Service,102280,Amptron Electrical Services,Amptron Electrical Services,Management & Support Services,1,202404,30/06/2023,P6,9107082,"-7,541.24 ","7,541.24 ",2000,Buildings Repairs and Maintenance - Reactive,1035,Headquarters,50.43 
Nottinghamshire Fire and Rescue Service,102280,Amptron Electrical Services,Amptron Electrical Services,Operational Responses,1,202404,30/06/2023,P6,9107085,"-7,404.74 ","7,404.74 ",2000,Buildings Repairs and Maintenance - Reactive,1001,Mansfield,"1,144.21 "
Nottinghamshire Fire and Rescue Service,102280,Amptron Electrical Services,Amptron Electrical Services,Operational Responses,1,202404,30/06/2023,P6,9107085,"-7,404.74 ","7,404.74 ",2000,Buildings Repairs and Maintenance - Reactive,1002,Blidworth,525.50 
Nottinghamshire Fire and Rescue Service,102280,Amptron Electrical Services,Amptron Electrical Services,Operational Responses,1,202404,30/06/2023,P6,9107085,"-7,404.74 ","7,404.74 ",2000,Buildings Repairs and Maintenance - Reactive,1003,London Road,529.19 
Nottinghamshire Fire and Rescue Service,102280,Amptron Electrical Services,Amptron Electrical Services,Operational Responses,1,202404,30/06/2023,P6,9107085,"-7,404.74 ","7,404.74 ",2000,Buildings Repairs and Maintenance - Reactive,1005,Ashfield,629.28 
Nottinghamshire Fire and Rescue Service,102280,Amptron Electrical Services,Amptron Electrical Services,Operational Responses,1,202404,30/06/2023,P6,9107085,"-7,404.74 ","7,404.74 ",2000,Buildings Repairs and Maintenance - Reactive,1012,Retford,209.09 
Nottinghamshire Fire and Rescue Service,102280,Amptron Electrical Services,Amptron Electrical Services,Operational Responses,1,202404,30/06/2023,P6,9107085,"-7,404.74 ","7,404.74 ",2000,Buildings Repairs and Maintenance - Reactive,1016,Newark,868.16 
Nottinghamshire Fire and Rescue Service,102280,Amptron Electrical Services,Amptron Electrical Services,Operational Responses,1,202404,30/06/2023,P6,9107085,"-7,404.74 ","7,404.74 ",2000,Buildings Repairs and Maintenance - Reactive,1029,Highfields Station,"2,265.18 "
Nottinghamshire Fire and Rescue Service,102280,Amptron Electrical Services,Amptron Electrical Services,Management & Support Services,1,202404,30/06/2023,P6,9107101,"-2,401.92 ","2,401.92 ",2000,Buildings Repairs and Maintenance - Reactive,2087,Estates Department (Previously Premises),"2,001.60 "
Nottinghamshire Fire and Rescue Service,102280,Amptron Electrical Services,Amptron Electrical Services,Management & Support Services,1,202404,30/06/2023,P6,9107135,"-1,079.94 ","1,079.94 ",2000,Buildings Repairs and Maintenance - Reactive,1030,Service Development Centre,899.95 
Nottinghamshire Fire and Rescue Service,100113,PPL PRS Ltd,PPL PRS Ltd,Operational Responses,1,202404,01/04/2023,P6,9107260,"-3,619.23 ","3,619.23 ",2000,Buildings Repairs and Maintenance - Reactive,1001,Mansfield,215.43 
Nottinghamshire Fire and Rescue Service,100113,PPL PRS Ltd,PPL PRS Ltd,Operational Responses,1,202404,01/04/2023,P6,9107260,"-3,619.23 ","3,619.23 ",2000,Buildings Repairs and Maintenance - Reactive,1003,London Road,215.43 
Nottinghamshire Fire and Rescue Service,100113,PPL PRS Ltd,PPL PRS Ltd,Operational Responses,1,202404,01/04/2023,P6,9107260,"-3,619.23 ","3,619.23 ",2000,Buildings Repairs and Maintenance - Reactive,1005,Ashfield,215.43 
Nottinghamshire Fire and Rescue Service,100113,PPL PRS Ltd,PPL PRS Ltd,Operational Responses,1,202404,01/04/2023,P6,9107260,"-3,619.23 ","3,619.23 ",2000,Buildings Repairs and Maintenance - Reactive,1008,Worksop,215.43 
Nottinghamshire Fire and Rescue Service,100113,PPL PRS Ltd,PPL PRS Ltd,Operational Responses,1,202404,01/04/2023,P6,9107260,"-3,619.23 ","3,619.23 ",2000,Buildings Repairs and Maintenance - Reactive,1012,Retford,215.43 
Nottinghamshire Fire and Rescue Service,100113,PPL PRS Ltd,PPL PRS Ltd,Operational Responses,1,202404,01/04/2023,P6,9107260,"-3,619.23 ","3,619.23 ",2000,Buildings Repairs and Maintenance - Reactive,1016,Newark,215.43 
Nottinghamshire Fire and Rescue Service,100113,PPL PRS Ltd,PPL PRS Ltd,Operational Responses,1,202404,01/04/2023,P6,9107260,"-3,619.23 ","3,619.23 ",2000,Buildings Repairs and Maintenance - Reactive,1019,West Bridgford,215.43 
Nottinghamshire Fire and Rescue Service,100113,PPL PRS Ltd,PPL PRS Ltd,Operational Responses,1,202404,01/04/2023,P6,9107260,"-3,619.23 ","3,619.23 ",2000,Buildings Repairs and Maintenance - Reactive,1020,Stockhill,215.43 
Nottinghamshire Fire and Rescue Service,100113,PPL PRS Ltd,PPL PRS Ltd,Operational Responses,1,202404,01/04/2023,P6,9107260,"-3,619.23 ","3,619.23 ",2000,Buildings Repairs and Maintenance - Reactive,1026,Arnold,215.43 
Nottinghamshire Fire and Rescue Service,100113,PPL PRS Ltd,PPL PRS Ltd,Operational Responses,1,202404,01/04/2023,P6,9107260,"-3,619.23 ","3,619.23 ",2000,Buildings Repairs and Maintenance - Reactive,1027,Carlton,215.43 
Nottinghamshire Fire and Rescue Service,100113,PPL PRS Ltd,PPL PRS Ltd,Operational Responses,1,202404,01/04/2023,P6,9107260,"-3,619.23 ","3,619.23 ",2000,Buildings Repairs and Maintenance - Reactive,1029,Highfields Station,215.43 
Nottinghamshire Fire and Rescue Service,100113,PPL PRS Ltd,PPL PRS Ltd,Management & Support Services,1,202404,01/04/2023,P6,9107260,"-3,619.23 ","3,619.23 ",2000,Buildings Repairs and Maintenance - Reactive,1030,Service Development Centre,215.43 
Nottinghamshire Fire and Rescue Service,100113,PPL PRS Ltd,PPL PRS Ltd,Management & Support Services,1,202404,01/04/2023,P6,9107260,"-3,619.23 ","3,619.23 ",2000,Buildings Repairs and Maintenance - Reactive,1035,Headquarters,215.43 
Nottinghamshire Fire and Rescue Service,100357,Eastern Shires Purchasing Organisation,Eastern Shires Purchasing Organisation,Operational Responses,1,202404,17/07/2023,P6,9107314,-324.00 ,324.00 ,2000,Buildings Repairs and Maintenance - Reactive,1020,Stockhill,270.00 
Nottinghamshire Fire and Rescue Service,102280,Amptron Electrical Services,Amptron Electrical Services,Operational Responses,1,202404,27/07/2023,P6,9107463,"-27,948.21 ","27,948.21 ",2000,Buildings Repairs and Maintenance - Reactive,1001,Mansfield,"5,541.65 "
Nottinghamshire Fire and Rescue Service,102280,Amptron Electrical Services,Amptron Electrical Services,Operational Responses,1,202404,27/07/2023,P6,9107463,"-27,948.21 ","27,948.21 ",2000,Buildings Repairs and Maintenance - Reactive,1002,Blidworth,373.69 
Nottinghamshire Fire and Rescue Service,102280,Amptron Electrical Services,Amptron Electrical Services,Operational Responses,1,202404,27/07/2023,P6,9107463,"-27,948.21 ","27,948.21 ",2000,Buildings Repairs and Maintenance - Reactive,1003,London Road,712.50 
Nottinghamshire Fire and Rescue Service,102280,Amptron Electrical Services,Amptron Electrical Services,Operational Responses,1,202404,27/07/2023,P6,9107463,"-27,948.21 ","27,948.21 ",2000,Buildings Repairs and Maintenance - Reactive,1005,Ashfield,"1,089.90 "
Nottinghamshire Fire and Rescue Service,102280,Amptron Electrical Services,Amptron Electrical Services,Operational Responses,1,202404,27/07/2023,P6,9107463,"-27,948.21 ","27,948.21 ",2000,Buildings Repairs and Maintenance - Reactive,1006,Edwinstowe,"1,097.79 "
Nottinghamshire Fire and Rescue Service,102280,Amptron Electrical Services,Amptron Electrical Services,Operational Responses,1,202404,27/07/2023,P6,9107463,"-27,948.21 ","27,948.21 ",2000,Buildings Repairs and Maintenance - Reactive,1008,Worksop,93.42 
Nottinghamshire Fire and Rescue Service,102280,Amptron Electrical Services,Amptron Electrical Services,Operational Responses,1,202404,27/07/2023,P6,9107463,"-27,948.21 ","27,948.21 ",2000,Buildings Repairs and Maintenance - Reactive,1010,Harworth,"1,085.55 "
Nottinghamshire Fire and Rescue Service,102280,Amptron Electrical Services,Amptron Electrical Services,Operational Responses,1,202404,27/07/2023,P6,9107463,"-27,948.21 ","27,948.21 ",2000,Buildings Repairs and Maintenance - Reactive,1011,Misterton,966.04 
Nottinghamshire Fire and Rescue Service,102280,Amptron Electrical Services,Amptron Electrical Services,Operational Responses,1,202404,27/07/2023,P6,9107463,"-27,948.21 ","27,948.21 ",2000,Buildings Repairs and Maintenance - Reactive,1013,Tuxford,"1,918.27 "
Nottinghamshire Fire and Rescue Service,102280,Amptron Electrical Services,Amptron Electrical Services,Operational Responses,1,202404,27/07/2023,P6,9107463,"-27,948.21 ","27,948.21 ",2000,Buildings Repairs and Maintenance - Reactive,1015,Collingham,"1,010.40 "
Nottinghamshire Fire and Rescue Service,102280,Amptron Electrical Services,Amptron Electrical Services,Operational Responses,1,202404,27/07/2023,P6,9107463,"-27,948.21 ","27,948.21 ",2000,Buildings Repairs and Maintenance - Reactive,1016,Newark,760.49 
Nottinghamshire Fire and Rescue Service,102280,Amptron Electrical Services,Amptron Electrical Services,Operational Responses,1,202404,27/07/2023,P6,9107463,"-27,948.21 ","27,948.21 ",2000,Buildings Repairs and Maintenance - Reactive,1017,Bingham,"1,536.96 "
Nottinghamshire Fire and Rescue Service,102280,Amptron Electrical Services,Amptron Electrical Services,Operational Responses,1,202404,27/07/2023,P6,9107463,"-27,948.21 ","27,948.21 ",2000,Buildings Repairs and Maintenance - Reactive,1019,West Bridgford,"3,755.68 "
Nottinghamshire Fire and Rescue Service,102280,Amptron Electrical Services,Amptron Electrical Services,Operational Responses,1,202404,27/07/2023,P6,9107463,"-27,948.21 ","27,948.21 ",2000,Buildings Repairs and Maintenance - Reactive,1020,Stockhill,168.00 
Nottinghamshire Fire and Rescue Service,102280,Amptron Electrical Services,Amptron Electrical Services,Operational Responses,1,202404,27/07/2023,P6,9107463,"-27,948.21 ","27,948.21 ",2000,Buildings Repairs and Maintenance - Reactive,1023,Stapleford,121.45 
Nottinghamshire Fire and Rescue Service,102280,Amptron Electrical Services,Amptron Electrical Services,Operational Responses,1,202404,27/07/2023,P6,9107463,"-27,948.21 ","27,948.21 ",2000,Buildings Repairs and Maintenance - Reactive,1026,Arnold,123.99 
Nottinghamshire Fire and Rescue Service,102280,Amptron Electrical Services,Amptron Electrical Services,Operational Responses,1,202404,27/07/2023,P6,9107463,"-27,948.21 ","27,948.21 ",2000,Buildings Repairs and Maintenance - Reactive,1027,Carlton,682.02 
Nottinghamshire Fire and Rescue Service,102280,Amptron Electrical Services,Amptron Electrical Services,Operational Responses,1,202404,27/07/2023,P6,9107463,"-27,948.21 ","27,948.21 ",2000,Buildings Repairs and Maintenance - Reactive,1028,East Leake,690.00 
Nottinghamshire Fire and Rescue Service,102280,Amptron Electrical Services,Amptron Electrical Services,Operational Responses,1,202404,27/07/2023,P6,9107463,"-27,948.21 ","27,948.21 ",2000,Buildings Repairs and Maintenance - Reactive,1029,Highfields Station,"1,260.00 "
Nottinghamshire Fire and Rescue Service,102280,Amptron Electrical Services,Amptron Electrical Services,Management & Support Services,1,202404,27/07/2023,P6,9107463,"-27,948.21 ","27,948.21 ",2000,Buildings Repairs and Maintenance - Reactive,1030,Service Development Centre,172.80 
Nottinghamshire Fire and Rescue Service,102280,Amptron Electrical Services,Amptron Electrical Services,Management & Support Services,1,202404,27/07/2023,P6,9107463,"-27,948.21 ","27,948.21 ",2000,Buildings Repairs and Maintenance - Reactive,1035,Headquarters,129.60 
Nottinghamshire Fire and Rescue Service,102280,Amptron Electrical Services,Amptron Electrical Services,Operational Responses,1,202404,26/07/2023,P6,9107464,"-19,484.11 ","19,484.11 ",2000,Buildings Repairs and Maintenance - Reactive,1001,Mansfield,948.29 
Nottinghamshire Fire and Rescue Service,102280,Amptron Electrical Services,Amptron Electrical Services,Operational Responses,1,202404,26/07/2023,P6,9107464,"-19,484.11 ","19,484.11 ",2000,Buildings Repairs and Maintenance - Reactive,1002,Blidworth,452.13 
Nottinghamshire Fire and Rescue Service,102280,Amptron Electrical Services,Amptron Electrical Services,Operational Responses,1,202404,26/07/2023,P6,9107464,"-19,484.11 ","19,484.11 ",2000,Buildings Repairs and Maintenance - Reactive,1005,Ashfield,419.42 
Nottinghamshire Fire and Rescue Service,102280,Amptron Electrical Services,Amptron Electrical Services,Operational Responses,1,202404,26/07/2023,P6,9107464,"-19,484.11 ","19,484.11 ",2000,Buildings Repairs and Maintenance - Reactive,1006,Edwinstowe,203.11 
Nottinghamshire Fire and Rescue Service,102280,Amptron Electrical Services,Amptron Electrical Services,Operational Responses,1,202404,26/07/2023,P6,9107464,"-19,484.11 ","19,484.11 ",2000,Buildings Repairs and Maintenance - Reactive,1008,Worksop,271.45 
Nottinghamshire Fire and Rescue Service,102280,Amptron Electrical Services,Amptron Electrical Services,Operational Responses,1,202404,26/07/2023,P6,9107464,"-19,484.11 ","19,484.11 ",2000,Buildings Repairs and Maintenance - Reactive,1011,Misterton,504.00 
Nottinghamshire Fire and Rescue Service,102280,Amptron Electrical Services,Amptron Electrical Services,Operational Responses,1,202404,26/07/2023,P6,9107464,"-19,484.11 ","19,484.11 ",2000,Buildings Repairs and Maintenance - Reactive,1012,Retford,88.02 
Nottinghamshire Fire and Rescue Service,102280,Amptron Electrical Services,Amptron Electrical Services,Operational Responses,1,202404,26/07/2023,P6,9107464,"-19,484.11 ","19,484.11 ",2000,Buildings Repairs and Maintenance - Reactive,1013,Tuxford,"1,710.48 "
Nottinghamshire Fire and Rescue Service,102280,Amptron Electrical Services,Amptron Electrical Services,Operational Responses,1,202404,26/07/2023,P6,9107464,"-19,484.11 ","19,484.11 ",2000,Buildings Repairs and Maintenance - Reactive,1016,Newark,436.38 
Nottinghamshire Fire and Rescue Service,102280,Amptron Electrical Services,Amptron Electrical Services,Operational Responses,1,202404,26/07/2023,P6,9107464,"-19,484.11 ","19,484.11 ",2000,Buildings Repairs and Maintenance - Reactive,1017,Bingham,129.60 
Nottinghamshire Fire and Rescue Service,102280,Amptron Electrical Services,Amptron Electrical Services,Operational Responses,1,202404,26/07/2023,P6,9107464,"-19,484.11 ","19,484.11 ",2000,Buildings Repairs and Maintenance - Reactive,1019,West Bridgford,"5,006.45 "
Nottinghamshire Fire and Rescue Service,102280,Amptron Electrical Services,Amptron Electrical Services,Operational Responses,1,202404,26/07/2023,P6,9107464,"-19,484.11 ","19,484.11 ",2000,Buildings Repairs and Maintenance - Reactive,1020,Stockhill,"2,453.21 "
Nottinghamshire Fire and Rescue Service,102280,Amptron Electrical Services,Amptron Electrical Services,Operational Responses,1,202404,26/07/2023,P6,9107464,"-19,484.11 ","19,484.11 ",2000,Buildings Repairs and Maintenance - Reactive,1023,Stapleford,113.40 
Nottinghamshire Fire and Rescue Service,102280,Amptron Electrical Services,Amptron Electrical Services,Operational Responses,1,202404,26/07/2023,P6,9107464,"-19,484.11 ","19,484.11 ",2000,Buildings Repairs and Maintenance - Reactive,1024,Eastwood,69.32 
Nottinghamshire Fire and Rescue Service,102280,Amptron Electrical Services,Amptron Electrical Services,Operational Responses,1,202404,26/07/2023,P6,9107464,"-19,484.11 ","19,484.11 ",2000,Buildings Repairs and Maintenance - Reactive,1026,Arnold,458.12 
Nottinghamshire Fire and Rescue Service,102280,Amptron Electrical Services,Amptron Electrical Services,Operational Responses,1,202404,26/07/2023,P6,9107464,"-19,484.11 ","19,484.11 ",2000,Buildings Repairs and Maintenance - Reactive,1027,Carlton,353.49 
Nottinghamshire Fire and Rescue Service,102280,Amptron Electrical Services,Amptron Electrical Services,Operational Responses,1,202404,26/07/2023,P6,9107464,"-19,484.11 ","19,484.11 ",2000,Buildings Repairs and Maintenance - Reactive,1028,East Leake,703.95 
Nottinghamshire Fire and Rescue Service,102280,Amptron Electrical Services,Amptron Electrical Services,Operational Responses,1,202404,26/07/2023,P6,9107464,"-19,484.11 ","19,484.11 ",2000,Buildings Repairs and Maintenance - Reactive,1029,Highfields Station,"1,206.24 "
Nottinghamshire Fire and Rescue Service,102280,Amptron Electrical Services,Amptron Electrical Services,Management & Support Services,1,202404,26/07/2023,P6,9107464,"-19,484.11 ","19,484.11 ",2000,Buildings Repairs and Maintenance - Reactive,1030,Service Development Centre,709.70 
Nottinghamshire Fire and Rescue Service,104235,Integrated Water Services,Integrated Water Services,Operational Responses,5,202404,22/03/2023,P6,9107061,-415.80 ,415.80 ,2050,Building Maintenance - Planned,1006,Edwinstowe,346.50 
Nottinghamshire Fire and Rescue Service,104235,Integrated Water Services,Integrated Water Services,Operational Responses,5,202404,22/03/2023,P6,9107062,-582.60 ,582.60 ,2050,Building Maintenance - Planned,1016,Newark,485.50 
Nottinghamshire Fire and Rescue Service,104235,Integrated Water Services,Integrated Water Services,Operational Responses,5,202404,22/03/2023,P6,9107063,-303.00 ,303.00 ,2050,Building Maintenance - Planned,1007,Warsop,252.50 
Nottinghamshire Fire and Rescue Service,102280,Amptron Electrical Services,Amptron Electrical Services,Operational Responses,1,202404,30/06/2023,P6,9107080,"-16,362.78 ","16,362.78 ",2050,Building Maintenance - Planned,1001,Mansfield,637.33 
Nottinghamshire Fire and Rescue Service,102280,Amptron Electrical Services,Amptron Electrical Services,Operational Responses,1,202404,30/06/2023,P6,9107080,"-16,362.78 ","16,362.78 ",2050,Building Maintenance - Planned,1002,Blidworth,266.10 
Nottinghamshire Fire and Rescue Service,102280,Amptron Electrical Services,Amptron Electrical Services,Operational Responses,1,202404,30/06/2023,P6,9107080,"-16,362.78 ","16,362.78 ",2050,Building Maintenance - Planned,1003,London Road,968.31 
Nottinghamshire Fire and Rescue Service,102280,Amptron Electrical Services,Amptron Electrical Services,Operational Responses,1,202404,30/06/2023,P6,9107080,"-16,362.78 ","16,362.78 ",2050,Building Maintenance - Planned,1005,Ashfield,445.62 
Nottinghamshire Fire and Rescue Service,102280,Amptron Electrical Services,Amptron Electrical Services,Operational Responses,1,202404,30/06/2023,P6,9107080,"-16,362.78 ","16,362.78 ",2050,Building Maintenance - Planned,1006,Edwinstowe,525.45 
Nottinghamshire Fire and Rescue Service,102280,Amptron Electrical Services,Amptron Electrical Services,Operational Responses,1,202404,30/06/2023,P6,9107080,"-16,362.78 ","16,362.78 ",2050,Building Maintenance - Planned,1007,Warsop,232.07 
Nottinghamshire Fire and Rescue Service,102280,Amptron Electrical Services,Amptron Electrical Services,Operational Responses,1,202404,30/06/2023,P6,9107080,"-16,362.78 ","16,362.78 ",2050,Building Maintenance - Planned,1008,Worksop,787.70 
Nottinghamshire Fire and Rescue Service,102280,Amptron Electrical Services,Amptron Electrical Services,Operational Responses,1,202404,30/06/2023,P6,9107080,"-16,362.78 ","16,362.78 ",2050,Building Maintenance - Planned,1010,Harworth,116.04 
Nottinghamshire Fire and Rescue Service,102280,Amptron Electrical Services,Amptron Electrical Services,Operational Responses,1,202404,30/06/2023,P6,9107080,"-16,362.78 ","16,362.78 ",2050,Building Maintenance - Planned,1011,Misterton,284.36 
Nottinghamshire Fire and Rescue Service,102280,Amptron Electrical Services,Amptron Electrical Services,Operational Responses,1,202404,30/06/2023,P6,9107080,"-16,362.78 ","16,362.78 ",2050,Building Maintenance - Planned,1012,Retford,968.31 
Nottinghamshire Fire and Rescue Service,102280,Amptron Electrical Services,Amptron Electrical Services,Operational Responses,1,202404,30/06/2023,P6,9107080,"-16,362.78 ","16,362.78 ",2050,Building Maintenance - Planned,1013,Tuxford,468.00 
Nottinghamshire Fire and Rescue Service,102280,Amptron Electrical Services,Amptron Electrical Services,Operational Responses,1,202404,30/06/2023,P6,9107080,"-16,362.78 ","16,362.78 ",2050,Building Maintenance - Planned,1014,Southwell,249.50 
Nottinghamshire Fire and Rescue Service,102280,Amptron Electrical Services,Amptron Electrical Services,Operational Responses,1,202404,30/06/2023,P6,9107080,"-16,362.78 ","16,362.78 ",2050,Building Maintenance - Planned,1015,Collingham,249.50 
Nottinghamshire Fire and Rescue Service,102280,Amptron Electrical Services,Amptron Electrical Services,Operational Responses,1,202404,30/06/2023,P6,9107080,"-16,362.78 ","16,362.78 ",2050,Building Maintenance - Planned,1016,Newark,889.31 
Nottinghamshire Fire and Rescue Service,102280,Amptron Electrical Services,Amptron Electrical Services,Operational Responses,1,202404,30/06/2023,P6,9107080,"-16,362.78 ","16,362.78 ",2050,Building Maintenance - Planned,1017,Bingham,187.10 
Nottinghamshire Fire and Rescue Service,102280,Amptron Electrical Services,Amptron Electrical Services,Operational Responses,1,202404,30/06/2023,P6,9107080,"-16,362.78 ","16,362.78 ",2050,Building Maintenance - Planned,1019,West Bridgford,751.29 
Nottinghamshire Fire and Rescue Service,102280,Amptron Electrical Services,Amptron Electrical Services,Operational Responses,1,202404,30/06/2023,P6,9107080,"-16,362.78 ","16,362.78 ",2050,Building Maintenance - Planned,1020,Stockhill,619.87 
Nottinghamshire Fire and Rescue Service,102280,Amptron Electrical Services,Amptron Electrical Services,Operational Responses,1,202404,30/06/2023,P6,9107080,"-16,362.78 ","16,362.78 ",2050,Building Maintenance - Planned,1023,Stapleford,187.10 
Nottinghamshire Fire and Rescue Service,102280,Amptron Electrical Services,Amptron Electrical Services,Operational Responses,1,202404,30/06/2023,P6,9107080,"-16,362.78 ","16,362.78 ",2050,Building Maintenance - Planned,1024,Eastwood,256.78 
Nottinghamshire Fire and Rescue Service,102280,Amptron Electrical Services,Amptron Electrical Services,Operational Responses,1,202404,30/06/2023,P6,9107080,"-16,362.78 ","16,362.78 ",2050,Building Maintenance - Planned,1025,Hucknall,34.86 
Nottinghamshire Fire and Rescue Service,102280,Amptron Electrical Services,Amptron Electrical Services,Operational Responses,1,202404,30/06/2023,P6,9107080,"-16,362.78 ","16,362.78 ",2050,Building Maintenance - Planned,1026,Arnold,733.86 
Nottinghamshire Fire and Rescue Service,102280,Amptron Electrical Services,Amptron Electrical Services,Operational Responses,1,202404,30/06/2023,P6,9107080,"-16,362.78 ","16,362.78 ",2050,Building Maintenance - Planned,1027,Carlton,929.32 
Nottinghamshire Fire and Rescue Service,102280,Amptron Electrical Services,Amptron Electrical Services,Operational Responses,1,202404,30/06/2023,P6,9107080,"-16,362.78 ","16,362.78 ",2050,Building Maintenance - Planned,1028,East Leake,284.36 
Nottinghamshire Fire and Rescue Service,102280,Amptron Electrical Services,Amptron Electrical Services,Operational Responses,1,202404,30/06/2023,P6,9107080,"-16,362.78 ","16,362.78 ",2050,Building Maintenance - Planned,1029,Highfields Station,"1,913.63 "
Nottinghamshire Fire and Rescue Service,102280,Amptron Electrical Services,Amptron Electrical Services,Management & Support Services,1,202404,30/06/2023,P6,9107080,"-16,362.78 ","16,362.78 ",2050,Building Maintenance - Planned,1030,Service Development Centre,488.89 
Nottinghamshire Fire and Rescue Service,102280,Amptron Electrical Services,Amptron Electrical Services,Management & Support Services,1,202404,30/06/2023,P6,9107080,"-16,362.78 ","16,362.78 ",2050,Building Maintenance - Planned,1035,Headquarters,160.99 
Nottinghamshire Fire and Rescue Service,102280,Amptron Electrical Services,Amptron Electrical Services,Operational Responses,1,202404,30/06/2023,P6,9107084,"-14,718.20 ","14,718.20 ",2050,Building Maintenance - Planned,1001,Mansfield,955.90 
Nottinghamshire Fire and Rescue Service,102280,Amptron Electrical Services,Amptron Electrical Services,Operational Responses,1,202404,30/06/2023,P6,9107084,"-14,718.20 ","14,718.20 ",2050,Building Maintenance - Planned,1002,Blidworth,181.20 
Nottinghamshire Fire and Rescue Service,102280,Amptron Electrical Services,Amptron Electrical Services,Operational Responses,1,202404,30/06/2023,P6,9107084,"-14,718.20 ","14,718.20 ",2050,Building Maintenance - Planned,1003,London Road,921.04 
Nottinghamshire Fire and Rescue Service,102280,Amptron Electrical Services,Amptron Electrical Services,Operational Responses,1,202404,30/06/2023,P6,9107084,"-14,718.20 ","14,718.20 ",2050,Building Maintenance - Planned,1005,Ashfield,229.87 
Nottinghamshire Fire and Rescue Service,102280,Amptron Electrical Services,Amptron Electrical Services,Operational Responses,1,202404,30/06/2023,P6,9107084,"-14,718.20 ","14,718.20 ",2050,Building Maintenance - Planned,1006,Edwinstowe,469.26 
Nottinghamshire Fire and Rescue Service,102280,Amptron Electrical Services,Amptron Electrical Services,Operational Responses,1,202404,30/06/2023,P6,9107084,"-14,718.20 ","14,718.20 ",2050,Building Maintenance - Planned,1007,Warsop,512.19 
Nottinghamshire Fire and Rescue Service,102280,Amptron Electrical Services,Amptron Electrical Services,Operational Responses,1,202404,30/06/2023,P6,9107084,"-14,718.20 ","14,718.20 ",2050,Building Maintenance - Planned,1008,Worksop,941.40 
Nottinghamshire Fire and Rescue Service,102280,Amptron Electrical Services,Amptron Electrical Services,Operational Responses,1,202404,30/06/2023,P6,9107084,"-14,718.20 ","14,718.20 ",2050,Building Maintenance - Planned,1010,Harworth,252.25 
Nottinghamshire Fire and Rescue Service,102280,Amptron Electrical Services,Amptron Electrical Services,Operational Responses,1,202404,30/06/2023,P6,9107084,"-14,718.20 ","14,718.20 ",2050,Building Maintenance - Planned,1011,Misterton,252.25 
Nottinghamshire Fire and Rescue Service,102280,Amptron Electrical Services,Amptron Electrical Services,Operational Responses,1,202404,30/06/2023,P6,9107084,"-14,718.20 ","14,718.20 ",2050,Building Maintenance - Planned,1012,Retford,921.06 
Nottinghamshire Fire and Rescue Service,102280,Amptron Electrical Services,Amptron Electrical Services,Operational Responses,1,202404,30/06/2023,P6,9107084,"-14,718.20 ","14,718.20 ",2050,Building Maintenance - Planned,1013,Tuxford,252.25 
Nottinghamshire Fire and Rescue Service,102280,Amptron Electrical Services,Amptron Electrical Services,Operational Responses,1,202404,30/06/2023,P6,9107084,"-14,718.20 ","14,718.20 ",2050,Building Maintenance - Planned,1014,Southwell,252.25 
Nottinghamshire Fire and Rescue Service,102280,Amptron Electrical Services,Amptron Electrical Services,Operational Responses,1,202404,30/06/2023,P6,9107084,"-14,718.20 ","14,718.20 ",2050,Building Maintenance - Planned,1015,Collingham,217.39 
Nottinghamshire Fire and Rescue Service,102280,Amptron Electrical Services,Amptron Electrical Services,Operational Responses,1,202404,30/06/2023,P6,9107084,"-14,718.20 ","14,718.20 ",2050,Building Maintenance - Planned,1016,Newark,873.72 
Nottinghamshire Fire and Rescue Service,102280,Amptron Electrical Services,Amptron Electrical Services,Operational Responses,1,202404,30/06/2023,P6,9107084,"-14,718.20 ","14,718.20 ",2050,Building Maintenance - Planned,1017,Bingham,181.20 
Nottinghamshire Fire and Rescue Service,102280,Amptron Electrical Services,Amptron Electrical Services,Operational Responses,1,202404,30/06/2023,P6,9107084,"-14,718.20 ","14,718.20 ",2050,Building Maintenance - Planned,1019,West Bridgford,296.23 
Nottinghamshire Fire and Rescue Service,102280,Amptron Electrical Services,Amptron Electrical Services,Operational Responses,1,202404,30/06/2023,P6,9107084,"-14,718.20 ","14,718.20 ",2050,Building Maintenance - Planned,1020,Stockhill,369.44 
Nottinghamshire Fire and Rescue Service,102280,Amptron Electrical Services,Amptron Electrical Services,Operational Responses,1,202404,30/06/2023,P6,9107084,"-14,718.20 ","14,718.20 ",2050,Building Maintenance - Planned,1023,Stapleford,216.06 
Nottinghamshire Fire and Rescue Service,102280,Amptron Electrical Services,Amptron Electrical Services,Operational Responses,1,202404,30/06/2023,P6,9107084,"-14,718.20 ","14,718.20 ",2050,Building Maintenance - Planned,1024,Eastwood,287.07 
Nottinghamshire Fire and Rescue Service,102280,Amptron Electrical Services,Amptron Electrical Services,Operational Responses,1,202404,30/06/2023,P6,9107084,"-14,718.20 ","14,718.20 ",2050,Building Maintenance - Planned,1026,Arnold,250.88 
Nottinghamshire Fire and Rescue Service,102280,Amptron Electrical Services,Amptron Electrical Services,Operational Responses,1,202404,30/06/2023,P6,9107084,"-14,718.20 ","14,718.20 ",2050,Building Maintenance - Planned,1027,Carlton,921.04 
Nottinghamshire Fire and Rescue Service,102280,Amptron Electrical Services,Amptron Electrical Services,Operational Responses,1,202404,30/06/2023,P6,9107084,"-14,718.20 ","14,718.20 ",2050,Building Maintenance - Planned,1028,East Leake,252.25 
Nottinghamshire Fire and Rescue Service,102280,Amptron Electrical Services,Amptron Electrical Services,Operational Responses,1,202404,30/06/2023,P6,9107084,"-14,718.20 ","14,718.20 ",2050,Building Maintenance - Planned,1029,Highfields Station,"1,330.43 "
Nottinghamshire Fire and Rescue Service,102280,Amptron Electrical Services,Amptron Electrical Services,Management & Support Services,1,202404,30/06/2023,P6,9107084,"-14,718.20 ","14,718.20 ",2050,Building Maintenance - Planned,1030,Service Development Centre,928.54 
Nottinghamshire Fire and Rescue Service,102280,Amptron Electrical Services,Amptron Electrical Services,Operational Responses,1,202404,21/07/2023,P6,9107403,"-4,320.00 ","4,320.00 ",2050,Building Maintenance - Planned,1005,Ashfield,"1,110.00 "
Nottinghamshire Fire and Rescue Service,102280,Amptron Electrical Services,Amptron Electrical Services,Operational Responses,1,202404,21/07/2023,P6,9107403,"-4,320.00 ","4,320.00 ",2050,Building Maintenance - Planned,1015,Collingham,720.00 
Nottinghamshire Fire and Rescue Service,102280,Amptron Electrical Services,Amptron Electrical Services,Operational Responses,1,202404,21/07/2023,P6,9107403,"-4,320.00 ","4,320.00 ",2050,Building Maintenance - Planned,1017,Bingham,750.00 
Nottinghamshire Fire and Rescue Service,102280,Amptron Electrical Services,Amptron Electrical Services,Operational Responses,1,202404,21/07/2023,P6,9107403,"-4,320.00 ","4,320.00 ",2050,Building Maintenance - Planned,1026,Arnold,"1,020.00 "
Nottinghamshire Fire and Rescue Service,102280,Amptron Electrical Services,Amptron Electrical Services,Operational Responses,1,202404,25/07/2023,P6,9107428,"-30,972.73 ","30,972.73 ",2050,Building Maintenance - Planned,1001,Mansfield,"1,275.82 "
Nottinghamshire Fire and Rescue Service,102280,Amptron Electrical Services,Amptron Electrical Services,Operational Responses,1,202404,25/07/2023,P6,9107428,"-30,972.73 ","30,972.73 ",2050,Building Maintenance - Planned,1002,Blidworth,"1,253.83 "
Nottinghamshire Fire and Rescue Service,102280,Amptron Electrical Services,Amptron Electrical Services,Operational Responses,1,202404,25/07/2023,P6,9107428,"-30,972.73 ","30,972.73 ",2050,Building Maintenance - Planned,1003,London Road,"2,002.61 "
Nottinghamshire Fire and Rescue Service,102280,Amptron Electrical Services,Amptron Electrical Services,Operational Responses,1,202404,25/07/2023,P6,9107428,"-30,972.73 ","30,972.73 ",2050,Building Maintenance - Planned,1005,Ashfield,459.58 
Nottinghamshire Fire and Rescue Service,102280,Amptron Electrical Services,Amptron Electrical Services,Operational Responses,1,202404,25/07/2023,P6,9107428,"-30,972.73 ","30,972.73 ",2050,Building Maintenance - Planned,1006,Edwinstowe,"1,050.63 "
Nottinghamshire Fire and Rescue Service,102280,Amptron Electrical Services,Amptron Electrical Services,Operational Responses,1,202404,25/07/2023,P6,9107428,"-30,972.73 ","30,972.73 ",2050,Building Maintenance - Planned,1007,Warsop,113.70 
Nottinghamshire Fire and Rescue Service,102280,Amptron Electrical Services,Amptron Electrical Services,Operational Responses,1,202404,25/07/2023,P6,9107428,"-30,972.73 ","30,972.73 ",2050,Building Maintenance - Planned,1008,Worksop,"1,712.17 "
Nottinghamshire Fire and Rescue Service,102280,Amptron Electrical Services,Amptron Electrical Services,Operational Responses,1,202404,25/07/2023,P6,9107428,"-30,972.73 ","30,972.73 ",2050,Building Maintenance - Planned,1010,Harworth,144.81 
Nottinghamshire Fire and Rescue Service,102280,Amptron Electrical Services,Amptron Electrical Services,Operational Responses,1,202404,25/07/2023,P6,9107428,"-30,972.73 ","30,972.73 ",2050,Building Maintenance - Planned,1011,Misterton,332.97 
Nottinghamshire Fire and Rescue Service,102280,Amptron Electrical Services,Amptron Electrical Services,Operational Responses,1,202404,25/07/2023,P6,9107428,"-30,972.73 ","30,972.73 ",2050,Building Maintenance - Planned,1012,Retford,"2,246.14 "
Nottinghamshire Fire and Rescue Service,102280,Amptron Electrical Services,Amptron Electrical Services,Operational Responses,1,202404,25/07/2023,P6,9107428,"-30,972.73 ","30,972.73 ",2050,Building Maintenance - Planned,1013,Tuxford,"1,566.65 "
Nottinghamshire Fire and Rescue Service,102280,Amptron Electrical Services,Amptron Electrical Services,Operational Responses,1,202404,25/07/2023,P6,9107428,"-30,972.73 ","30,972.73 ",2050,Building Maintenance - Planned,1014,Southwell,333.00 
Nottinghamshire Fire and Rescue Service,102280,Amptron Electrical Services,Amptron Electrical Services,Operational Responses,1,202404,25/07/2023,P6,9107428,"-30,972.73 ","30,972.73 ",2050,Building Maintenance - Planned,1015,Collingham,104.97 
Nottinghamshire Fire and Rescue Service,102280,Amptron Electrical Services,Amptron Electrical Services,Operational Responses,1,202404,25/07/2023,P6,9107428,"-30,972.73 ","30,972.73 ",2050,Building Maintenance - Planned,1016,Newark,"1,109.32 "
Nottinghamshire Fire and Rescue Service,102280,Amptron Electrical Services,Amptron Electrical Services,Operational Responses,1,202404,25/07/2023,P6,9107428,"-30,972.73 ","30,972.73 ",2050,Building Maintenance - Planned,1017,Bingham,109.96 
Nottinghamshire Fire and Rescue Service,102280,Amptron Electrical Services,Amptron Electrical Services,Operational Responses,1,202404,25/07/2023,P6,9107428,"-30,972.73 ","30,972.73 ",2050,Building Maintenance - Planned,1019,West Bridgford,87.97 
Nottinghamshire Fire and Rescue Service,102280,Amptron Electrical Services,Amptron Electrical Services,Operational Responses,1,202404,25/07/2023,P6,9107428,"-30,972.73 ","30,972.73 ",2050,Building Maintenance - Planned,1020,Stockhill,"1,658.33 "
Nottinghamshire Fire and Rescue Service,102280,Amptron Electrical Services,Amptron Electrical Services,Operational Responses,1,202404,25/07/2023,P6,9107428,"-30,972.73 ","30,972.73 ",2050,Building Maintenance - Planned,1023,Stapleford,333.00 
Nottinghamshire Fire and Rescue Service,102280,Amptron Electrical Services,Amptron Electrical Services,Operational Responses,1,202404,25/07/2023,P6,9107428,"-30,972.73 ","30,972.73 ",2050,Building Maintenance - Planned,1024,Eastwood,61.39 
Nottinghamshire Fire and Rescue Service,102280,Amptron Electrical Services,Amptron Electrical Services,Operational Responses,1,202404,25/07/2023,P6,9107428,"-30,972.73 ","30,972.73 ",2050,Building Maintenance - Planned,1026,Arnold,157.26 
Nottinghamshire Fire and Rescue Service,102280,Amptron Electrical Services,Amptron Electrical Services,Operational Responses,1,202404,25/07/2023,P6,9107428,"-30,972.73 ","30,972.73 ",2050,Building Maintenance - Planned,1027,Carlton,"1,960.26 "
Nottinghamshire Fire and Rescue Service,102280,Amptron Electrical Services,Amptron Electrical Services,Operational Responses,1,202404,25/07/2023,P6,9107428,"-30,972.73 ","30,972.73 ",2050,Building Maintenance - Planned,1028,East Leake,333.00 
Nottinghamshire Fire and Rescue Service,102280,Amptron Electrical Services,Amptron Electrical Services,Operational Responses,1,202404,25/07/2023,P6,9107428,"-30,972.73 ","30,972.73 ",2050,Building Maintenance - Planned,1029,Highfields Station,"1,725.06 "
Nottinghamshire Fire and Rescue Service,102280,Amptron Electrical Services,Amptron Electrical Services,Management & Support Services,1,202404,25/07/2023,P6,9107428,"-30,972.73 ","30,972.73 ",2050,Building Maintenance - Planned,1030,Service Development Centre,"5,678.18 "
Nottinghamshire Fire and Rescue Service,104053,Kings Security Systems Limited T/A Kings Secure Technologies,Kings Security Systems Limited T/A Kings Secure Technologies,Management & Support Services,5,202404,25/07/2023,P6,9107471,-588.00 ,588.00 ,2050,Building Maintenance - Planned,1030,Service Development Centre,245.00 
Nottinghamshire Fire and Rescue Service,104053,Kings Security Systems Limited T/A Kings Secure Technologies,Kings Security Systems Limited T/A Kings Secure Technologies,Management & Support Services,5,202404,25/07/2023,P6,9107471,-588.00 ,588.00 ,2050,Building Maintenance - Planned,1035,Headquarters,245.00 
Nottinghamshire Fire and Rescue Service,102744,EDF Energy,EDF Energy,Operational Responses,1,202404,29/06/2023,P6,9107156,"-5,541.52 ","5,541.52 ",2100,Electricity,1007,Warsop,"4,617.94 "
Nottinghamshire Fire and Rescue Service,102744,EDF Energy,EDF Energy,Operational Responses,1,202404,29/06/2023,P6,9107157,-587.17 ,587.17 ,2100,Electricity,1007,Warsop,489.31 
Nottinghamshire Fire and Rescue Service,102744,EDF Energy,EDF Energy,Operational Responses,1,202404,03/07/2023,P6,9107158,"-1,895.18 ","1,895.18 ",2100,Electricity,1008,Worksop,"1,579.31 "
Nottinghamshire Fire and Rescue Service,102744,EDF Energy,EDF Energy,Operational Responses,1,202404,30/06/2023,P6,9107160,"-2,808.11 ","2,808.11 ",2100,Electricity,1001,Mansfield,"2,340.09 "
Nottinghamshire Fire and Rescue Service,102744,EDF Energy,EDF Energy,Operational Responses,1,202404,30/06/2023,P6,9107161,"-2,170.08 ","2,170.08 ",2100,Electricity,1001,Mansfield,"1,808.40 "
Nottinghamshire Fire and Rescue Service,102744,EDF Energy,EDF Energy,Operational Responses,1,202404,30/06/2023,P6,9107162,"-2,402.45 ","2,402.45 ",2100,Electricity,1001,Mansfield,"2,002.04 "
Nottinghamshire Fire and Rescue Service,102744,EDF Energy,EDF Energy,Operational Responses,1,202404,30/06/2023,P6,9107163,"-2,716.91 ","2,716.91 ",2100,Electricity,1001,Mansfield,"2,264.09 "
Nottinghamshire Fire and Rescue Service,102744,EDF Energy,EDF Energy,Operational Responses,1,202404,30/06/2023,P6,9107164,-258.81 ,258.81 ,2100,Electricity,1001,Mansfield,246.50 
Nottinghamshire Fire and Rescue Service,102744,EDF Energy,EDF Energy,Operational Responses,1,202404,30/06/2023,P6,9107166,-630.02 ,630.02 ,2100,Electricity,1015,Collingham,525.02 
Nottinghamshire Fire and Rescue Service,102744,EDF Energy,EDF Energy,Operational Responses,1,202404,30/06/2023,P6,9107167,-844.50 ,844.50 ,2100,Electricity,1013,Tuxford,703.75 
Nottinghamshire Fire and Rescue Service,102744,EDF Energy,EDF Energy,Operational Responses,1,202404,30/06/2023,P6,9107169,"-2,124.60 ","2,124.60 ",2100,Electricity,1026,Arnold,"1,770.50 "
Nottinghamshire Fire and Rescue Service,102744,EDF Energy,EDF Energy,Operational Responses,1,202404,30/06/2023,P6,9107170,"-2,931.11 ","2,931.11 ",2100,Electricity,1001,Mansfield,"2,442.59 "
Nottinghamshire Fire and Rescue Service,102744,EDF Energy,EDF Energy,Operational Responses,1,202404,30/06/2023,P6,9107171,"-3,062.43 ","3,062.43 ",2100,Electricity,1001,Mansfield,"2,552.02 "
Nottinghamshire Fire and Rescue Service,102744,EDF Energy,EDF Energy,Operational Responses,1,202404,30/06/2023,P6,9107172,-331.33 ,331.33 ,2100,Electricity,1002,Blidworth,315.56 
Nottinghamshire Fire and Rescue Service,102744,EDF Energy,EDF Energy,Operational Responses,1,202404,10/07/2023,P6,9107263,-552.56 ,552.56 ,2100,Electricity,1007,Warsop,460.46 
Nottinghamshire Fire and Rescue Service,102744,EDF Energy,EDF Energy,Operational Responses,1,202404,06/07/2023,P6,9107264,-412.90 ,412.90 ,2100,Electricity,1028,East Leake,393.24 
Nottinghamshire Fire and Rescue Service,102744,EDF Energy,EDF Energy,Operational Responses,1,202404,07/07/2023,P6,9107265,"-26,209.61 ","26,209.61 ",2100,Electricity,1003,London Road,"3,255.89 "
Nottinghamshire Fire and Rescue Service,102744,EDF Energy,EDF Energy,Operational Responses,1,202404,07/07/2023,P6,9107265,"-26,209.61 ","26,209.61 ",2100,Electricity,1012,Retford,"2,171.85 "
Nottinghamshire Fire and Rescue Service,102744,EDF Energy,EDF Energy,Operational Responses,1,202404,07/07/2023,P6,9107265,"-26,209.61 ","26,209.61 ",2100,Electricity,1016,Newark,"1,465.32 "
Nottinghamshire Fire and Rescue Service,102744,EDF Energy,EDF Energy,Operational Responses,1,202404,07/07/2023,P6,9107265,"-26,209.61 ","26,209.61 ",2100,Electricity,1027,Carlton,"3,914.96 "
Nottinghamshire Fire and Rescue Service,102744,EDF Energy,EDF Energy,Operational Responses,1,202404,07/07/2023,P6,9107265,"-26,209.61 ","26,209.61 ",2100,Electricity,1029,Highfields Station,"6,508.32 "
Nottinghamshire Fire and Rescue Service,102744,EDF Energy,EDF Energy,Management & Support Services,1,202404,07/07/2023,P6,9107265,"-26,209.61 ","26,209.61 ",2100,Electricity,1030,Service Development Centre,470.60 
Nottinghamshire Fire and Rescue Service,102744,EDF Energy,EDF Energy,Management & Support Services,1,202404,07/07/2023,P6,9107265,"-26,209.61 ","26,209.61 ",2100,Electricity,1030,Service Development Centre,"2,852.16 "
Nottinghamshire Fire and Rescue Service,102744,EDF Energy,EDF Energy,Management & Support Services,1,202404,07/07/2023,P6,9107265,"-26,209.61 ","26,209.61 ",2100,Electricity,1035,Headquarters,"1,280.66 "
Nottinghamshire Fire and Rescue Service,102744,EDF Energy,EDF Energy,Operational Responses,1,202404,04/07/2023,P6,9107152,409.47 ,-409.47 ,2100,Electricity,1008,Worksop,-341.23 
Nottinghamshire Fire and Rescue Service,102744,EDF Energy,EDF Energy,Operational Responses,1,202404,04/07/2023,P6,9107153,377.23 ,-377.23 ,2100,Electricity,1008,Worksop,-314.36 
Nottinghamshire Fire and Rescue Service,102744,EDF Energy,EDF Energy,Operational Responses,1,202404,04/07/2023,P6,9107154,407.45 ,-407.45 ,2100,Electricity,1008,Worksop,-339.54 
Nottinghamshire Fire and Rescue Service,102744,EDF Energy,EDF Energy,Operational Responses,1,202404,04/07/2023,P6,9107155,277.64 ,-277.64 ,2100,Electricity,1008,Worksop,-264.42 
Nottinghamshire Fire and Rescue Service,102655,Nottingham City Council (City Treasurer),Nottingham City Council (City Treasurer),Operational Responses,1,202404,07/07/2023,P6,9107159,"-1,505.78 ","1,505.78 ",2101,Gas,1003,London Road,"1,254.82 "
Nottinghamshire Fire and Rescue Service,104098,Total Gas & Power Limited,Total Gas & Power Limited,Operational Responses,5,202404,06/07/2023,P6,9107266,"-1,644.31 ","1,644.31 ",2101,Gas,1001,Mansfield,"1,370.25 "
Nottinghamshire Fire and Rescue Service,104098,Total Gas & Power Limited,Total Gas & Power Limited,Operational Responses,5,202404,06/07/2023,P6,9107267,"-1,583.15 ","1,583.15 ",2101,Gas,1001,Mansfield,"1,319.29 "
Nottinghamshire Fire and Rescue Service,104098,Total Gas & Power Limited,Total Gas & Power Limited,Operational Responses,5,202404,06/07/2023,P6,9107268,"-1,480.71 ","1,480.71 ",2101,Gas,1001,Mansfield,"1,233.92 "
Nottinghamshire Fire and Rescue Service,104098,Total Gas & Power Limited,Total Gas & Power Limited,Operational Responses,5,202404,06/07/2023,P6,9107285,-397.35 ,397.35 ,2101,Gas,1012,Retford,378.43 
Nottinghamshire Fire and Rescue Service,104098,Total Gas & Power Limited,Total Gas & Power Limited,Operational Responses,5,202404,06/07/2023,P6,9107286,"-6,109.01 ","6,109.01 ",2101,Gas,1001,Mansfield,"5,090.84 "
Nottinghamshire Fire and Rescue Service,104098,Total Gas & Power Limited,Total Gas & Power Limited,Operational Responses,5,202404,06/07/2023,P6,9107287,"-2,467.40 ","2,467.40 ",2101,Gas,1001,Mansfield,"2,056.18 "
Nottinghamshire Fire and Rescue Service,104098,Total Gas & Power Limited,Total Gas & Power Limited,Operational Responses,5,202404,14/07/2023,P6,9107338,"-1,210.99 ","1,210.99 ",2101,Gas,1020,Stockhill,"1,009.15 "
Nottinghamshire Fire and Rescue Service,104098,Total Gas & Power Limited,Total Gas & Power Limited,Management & Support Services,5,202404,14/07/2023,P6,9107339,-802.21 ,802.21 ,2101,Gas,1030,Service Development Centre,668.51 
Nottinghamshire Fire and Rescue Service,104098,Total Gas & Power Limited,Total Gas & Power Limited,Operational Responses,5,202404,14/07/2023,P6,9107343,"-1,110.18 ","1,110.18 ",2101,Gas,1019,West Bridgford,925.15 
Nottinghamshire Fire and Rescue Service,104098,Total Gas & Power Limited,Total Gas & Power Limited,Operational Responses,5,202404,14/07/2023,P6,9107344,-311.92 ,311.92 ,2101,Gas,1024,Eastwood,297.07 
Nottinghamshire Fire and Rescue Service,104098,Total Gas & Power Limited,Total Gas & Power Limited,Operational Responses,5,202404,14/07/2023,P6,9107345,-451.68 ,451.68 ,2101,Gas,1012,Retford,430.17 
Nottinghamshire Fire and Rescue Service,104098,Total Gas & Power Limited,Total Gas & Power Limited,Operational Responses,5,202404,14/07/2023,P6,9107347,"-1,670.10 ","1,670.10 ",2101,Gas,1026,Arnold,"1,391.75 "
Nottinghamshire Fire and Rescue Service,104098,Total Gas & Power Limited,Total Gas & Power Limited,Operational Responses,5,202404,14/07/2023,P6,9107349,-321.81 ,321.81 ,2101,Gas,1016,Newark,306.49 
Nottinghamshire Fire and Rescue Service,104098,Total Gas & Power Limited,Total Gas & Power Limited,Operational Responses,5,202404,14/07/2023,P6,9107350,"-1,930.56 ","1,930.56 ",2101,Gas,1001,Mansfield,"1,608.80 "
Nottinghamshire Fire and Rescue Service,104098,Total Gas & Power Limited,Total Gas & Power Limited,Operational Responses,5,202404,14/07/2023,P6,9107351,-523.24 ,523.24 ,2101,Gas,1029,Highfields Station,498.32 
Nottinghamshire Fire and Rescue Service,104098,Total Gas & Power Limited,Total Gas & Power Limited,Operational Responses,5,202404,14/07/2023,P6,9107352,-283.43 ,283.43 ,2101,Gas,1001,Mansfield,269.93 
Nottinghamshire Fire and Rescue Service,104098,Total Gas & Power Limited,Total Gas & Power Limited,Operational Responses,5,202404,14/07/2023,P6,9107354,"-1,897.02 ","1,897.02 ",2101,Gas,1005,Ashfield,"1,580.85 "
Nottinghamshire Fire and Rescue Service,104098,Total Gas & Power Limited,Total Gas & Power Limited,Operational Responses,5,202404,14/07/2023,P6,9107355,-301.14 ,301.14 ,2101,Gas,1010,Harworth,286.80 
Nottinghamshire Fire and Rescue Service,104098,Total Gas & Power Limited,Total Gas & Power Limited,Operational Responses,5,202404,14/07/2023,P6,9107442,"-6,583.33 ","6,583.33 ",2101,Gas,1006,Edwinstowe,"5,486.10 "
Nottinghamshire Fire and Rescue Service,104098,Total Gas & Power Limited,Total Gas & Power Limited,Operational Responses,5,202404,20/07/2023,P6,9107460,-347.66 ,347.66 ,2101,Gas,1008,Worksop,331.10 
Nottinghamshire Fire and Rescue Service,104098,Total Gas & Power Limited,Total Gas & Power Limited,Operational Responses,5,202404,06/07/2023,P6,9107274,839.23 ,-839.23 ,2101,Gas,1012,Retford,-699.36 
Nottinghamshire Fire and Rescue Service,104098,Total Gas & Power Limited,Total Gas & Power Limited,Operational Responses,5,202404,05/07/2023,P6,9107275,282.18 ,-282.18 ,2101,Gas,1017,Bingham,-268.74 
Nottinghamshire Fire and Rescue Service,104098,Total Gas & Power Limited,Total Gas & Power Limited,Operational Responses,5,202404,06/07/2023,P6,9107278,"3,130.76 ","-3,130.76 ",2101,Gas,1001,Mansfield,"-2,608.96 "
Nottinghamshire Fire and Rescue Service,104256,Advanced Demand Side Management Limited,Advanced Demand Side Management Limited,Operational Responses,5,202404,21/11/2022,P6,9107261,"-15,000.00 ","15,000.00 ",2103,Water Rates,1001,Mansfield,156.71 
Nottinghamshire Fire and Rescue Service,104256,Advanced Demand Side Management Limited,Advanced Demand Side Management Limited,Operational Responses,5,202404,21/11/2022,P6,9107261,"-15,000.00 ","15,000.00 ",2103,Water Rates,1001,Mansfield,712.05 
Nottinghamshire Fire and Rescue Service,104256,Advanced Demand Side Management Limited,Advanced Demand Side Management Limited,Operational Responses,5,202404,21/11/2022,P6,9107261,"-15,000.00 ","15,000.00 ",2103,Water Rates,1002,Blidworth,38.55 
Nottinghamshire Fire and Rescue Service,104256,Advanced Demand Side Management Limited,Advanced Demand Side Management Limited,Operational Responses,5,202404,21/11/2022,P6,9107261,"-15,000.00 ","15,000.00 ",2103,Water Rates,1003,London Road,116.02 
Nottinghamshire Fire and Rescue Service,104256,Advanced Demand Side Management Limited,Advanced Demand Side Management Limited,Operational Responses,5,202404,21/11/2022,P6,9107261,"-15,000.00 ","15,000.00 ",2103,Water Rates,1005,Ashfield,399.37 
Nottinghamshire Fire and Rescue Service,104256,Advanced Demand Side Management Limited,Advanced Demand Side Management Limited,Operational Responses,5,202404,21/11/2022,P6,9107261,"-15,000.00 ","15,000.00 ",2103,Water Rates,1006,Edwinstowe,69.23 
Nottinghamshire Fire and Rescue Service,104256,Advanced Demand Side Management Limited,Advanced Demand Side Management Limited,Operational Responses,5,202404,21/11/2022,P6,9107261,"-15,000.00 ","15,000.00 ",2103,Water Rates,1006,Edwinstowe,436.22 
Nottinghamshire Fire and Rescue Service,104256,Advanced Demand Side Management Limited,Advanced Demand Side Management Limited,Operational Responses,5,202404,21/11/2022,P6,9107261,"-15,000.00 ","15,000.00 ",2103,Water Rates,1007,Warsop,101.33 
Nottinghamshire Fire and Rescue Service,104256,Advanced Demand Side Management Limited,Advanced Demand Side Management Limited,Operational Responses,5,202404,21/11/2022,P6,9107261,"-15,000.00 ","15,000.00 ",2103,Water Rates,1008,Worksop,958.50 
Nottinghamshire Fire and Rescue Service,104256,Advanced Demand Side Management Limited,Advanced Demand Side Management Limited,Operational Responses,5,202404,21/11/2022,P6,9107261,"-15,000.00 ","15,000.00 ",2103,Water Rates,1010,Harworth,142.87 
Nottinghamshire Fire and Rescue Service,104256,Advanced Demand Side Management Limited,Advanced Demand Side Management Limited,Operational Responses,5,202404,21/11/2022,P6,9107261,"-15,000.00 ","15,000.00 ",2103,Water Rates,1011,Misterton,15.13 
Nottinghamshire Fire and Rescue Service,104256,Advanced Demand Side Management Limited,Advanced Demand Side Management Limited,Operational Responses,5,202404,21/11/2022,P6,9107261,"-15,000.00 ","15,000.00 ",2103,Water Rates,1011,Misterton,109.79 
Nottinghamshire Fire and Rescue Service,104256,Advanced Demand Side Management Limited,Advanced Demand Side Management Limited,Operational Responses,5,202404,21/11/2022,P6,9107261,"-15,000.00 ","15,000.00 ",2103,Water Rates,1012,Retford,165.78 
Nottinghamshire Fire and Rescue Service,104256,Advanced Demand Side Management Limited,Advanced Demand Side Management Limited,Operational Responses,5,202404,21/11/2022,P6,9107261,"-15,000.00 ","15,000.00 ",2103,Water Rates,1012,Retford,283.70 
Nottinghamshire Fire and Rescue Service,104256,Advanced Demand Side Management Limited,Advanced Demand Side Management Limited,Operational Responses,5,202404,21/11/2022,P6,9107261,"-15,000.00 ","15,000.00 ",2103,Water Rates,1013,Tuxford,693.78 
Nottinghamshire Fire and Rescue Service,104256,Advanced Demand Side Management Limited,Advanced Demand Side Management Limited,Operational Responses,5,202404,21/11/2022,P6,9107261,"-15,000.00 ","15,000.00 ",2103,Water Rates,1014,Southwell,296.70 
Nottinghamshire Fire and Rescue Service,104256,Advanced Demand Side Management Limited,Advanced Demand Side Management Limited,Operational Responses,5,202404,21/11/2022,P6,9107261,"-15,000.00 ","15,000.00 ",2103,Water Rates,1015,Collingham,254.54 
Nottinghamshire Fire and Rescue Service,104256,Advanced Demand Side Management Limited,Advanced Demand Side Management Limited,Operational Responses,5,202404,21/11/2022,P6,9107261,"-15,000.00 ","15,000.00 ",2103,Water Rates,1016,Newark,504.37 
Nottinghamshire Fire and Rescue Service,104256,Advanced Demand Side Management Limited,Advanced Demand Side Management Limited,Operational Responses,5,202404,21/11/2022,P6,9107261,"-15,000.00 ","15,000.00 ",2103,Water Rates,1017,Bingham,291.17 
Nottinghamshire Fire and Rescue Service,104256,Advanced Demand Side Management Limited,Advanced Demand Side Management Limited,Operational Responses,5,202404,21/11/2022,P6,9107261,"-15,000.00 ","15,000.00 ",2103,Water Rates,1019,West Bridgford,"1,472.71 "
Nottinghamshire Fire and Rescue Service,104256,Advanced Demand Side Management Limited,Advanced Demand Side Management Limited,Operational Responses,5,202404,21/11/2022,P6,9107261,"-15,000.00 ","15,000.00 ",2103,Water Rates,1020,Stockhill,522.92 
Nottinghamshire Fire and Rescue Service,104256,Advanced Demand Side Management Limited,Advanced Demand Side Management Limited,Operational Responses,5,202404,21/11/2022,P6,9107261,"-15,000.00 ","15,000.00 ",2103,Water Rates,1023,Stapleford,440.70 
Nottinghamshire Fire and Rescue Service,104256,Advanced Demand Side Management Limited,Advanced Demand Side Management Limited,Operational Responses,5,202404,21/11/2022,P6,9107261,"-15,000.00 ","15,000.00 ",2103,Water Rates,1024,Eastwood,196.43 
Nottinghamshire Fire and Rescue Service,104256,Advanced Demand Side Management Limited,Advanced Demand Side Management Limited,Operational Responses,5,202404,21/11/2022,P6,9107261,"-15,000.00 ","15,000.00 ",2103,Water Rates,1026,Arnold,650.05 
Nottinghamshire Fire and Rescue Service,104256,Advanced Demand Side Management Limited,Advanced Demand Side Management Limited,Operational Responses,5,202404,21/11/2022,P6,9107261,"-15,000.00 ","15,000.00 ",2103,Water Rates,1027,Carlton,575.11 
Nottinghamshire Fire and Rescue Service,104256,Advanced Demand Side Management Limited,Advanced Demand Side Management Limited,Operational Responses,5,202404,21/11/2022,P6,9107261,"-15,000.00 ","15,000.00 ",2103,Water Rates,1028,East Leake,62.57 
Nottinghamshire Fire and Rescue Service,104256,Advanced Demand Side Management Limited,Advanced Demand Side Management Limited,Operational Responses,5,202404,21/11/2022,P6,9107261,"-15,000.00 ","15,000.00 ",2103,Water Rates,1029,Highfields Station,"1,436.86 "
Nottinghamshire Fire and Rescue Service,104256,Advanced Demand Side Management Limited,Advanced Demand Side Management Limited,Management & Support Services,5,202404,21/11/2022,P6,9107261,"-15,000.00 ","15,000.00 ",2103,Water Rates,1030,Service Development Centre,"2,375.58 "
Nottinghamshire Fire and Rescue Service,104256,Advanced Demand Side Management Limited,Advanced Demand Side Management Limited,Management & Support Services,5,202404,21/11/2022,P6,9107261,"-15,000.00 ","15,000.00 ",2103,Water Rates,1035,Headquarters,"1,287.34 "
Nottinghamshire Fire and Rescue Service,104256,Advanced Demand Side Management Limited,Advanced Demand Side Management Limited,Prevention & Education,5,202404,21/11/2022,P6,9107261,"-15,000.00 ","15,000.00 ",2103,Water Rates,1036,Clifton Community Safety Centre,221.31 
Nottinghamshire Fire and Rescue Service,104256,Advanced Demand Side Management Limited,Advanced Demand Side Management Limited,Management & Support Services,5,202404,21/11/2022,P6,9107261,"-15,000.00 ","15,000.00 ",2103,Water Rates,1046,Stockhill House,12.61 
Nottinghamshire Fire and Rescue Service,104256,Advanced Demand Side Management Limited,Advanced Demand Side Management Limited,Operational Responses,5,202404,10/07/2023,P6,9107283,"-6,130.53 ","6,130.53 ",2103,Water Rates,1001,Mansfield,2.59 
Nottinghamshire Fire and Rescue Service,104256,Advanced Demand Side Management Limited,Advanced Demand Side Management Limited,Operational Responses,5,202404,10/07/2023,P6,9107283,"-6,130.53 ","6,130.53 ",2103,Water Rates,1001,Mansfield,69.11 
Nottinghamshire Fire and Rescue Service,104256,Advanced Demand Side Management Limited,Advanced Demand Side Management Limited,Operational Responses,5,202404,10/07/2023,P6,9107283,"-6,130.53 ","6,130.53 ",2103,Water Rates,1002,Blidworth,17.20 
Nottinghamshire Fire and Rescue Service,104256,Advanced Demand Side Management Limited,Advanced Demand Side Management Limited,Operational Responses,5,202404,10/07/2023,P6,9107283,"-6,130.53 ","6,130.53 ",2103,Water Rates,1003,London Road,68.21 
Nottinghamshire Fire and Rescue Service,104256,Advanced Demand Side Management Limited,Advanced Demand Side Management Limited,Operational Responses,5,202404,10/07/2023,P6,9107283,"-6,130.53 ","6,130.53 ",2103,Water Rates,1005,Ashfield,68.45 
Nottinghamshire Fire and Rescue Service,104256,Advanced Demand Side Management Limited,Advanced Demand Side Management Limited,Operational Responses,5,202404,10/07/2023,P6,9107283,"-6,130.53 ","6,130.53 ",2103,Water Rates,1006,Edwinstowe,1.37 
Nottinghamshire Fire and Rescue Service,104256,Advanced Demand Side Management Limited,Advanced Demand Side Management Limited,Operational Responses,5,202404,10/07/2023,P6,9107283,"-6,130.53 ","6,130.53 ",2103,Water Rates,1007,Warsop,83.06 
Nottinghamshire Fire and Rescue Service,104256,Advanced Demand Side Management Limited,Advanced Demand Side Management Limited,Operational Responses,5,202404,10/07/2023,P6,9107283,"-6,130.53 ","6,130.53 ",2103,Water Rates,1008,Worksop,30.09 
Nottinghamshire Fire and Rescue Service,104256,Advanced Demand Side Management Limited,Advanced Demand Side Management Limited,Operational Responses,5,202404,10/07/2023,P6,9107283,"-6,130.53 ","6,130.53 ",2103,Water Rates,1008,Worksop,102.75 
Nottinghamshire Fire and Rescue Service,104256,Advanced Demand Side Management Limited,Advanced Demand Side Management Limited,Operational Responses,5,202404,10/07/2023,P6,9107283,"-6,130.53 ","6,130.53 ",2103,Water Rates,1010,Harworth,23.39 
Nottinghamshire Fire and Rescue Service,104256,Advanced Demand Side Management Limited,Advanced Demand Side Management Limited,Operational Responses,5,202404,10/07/2023,P6,9107283,"-6,130.53 ","6,130.53 ",2103,Water Rates,1011,Misterton,15.29 
Nottinghamshire Fire and Rescue Service,104256,Advanced Demand Side Management Limited,Advanced Demand Side Management Limited,Operational Responses,5,202404,10/07/2023,P6,9107283,"-6,130.53 ","6,130.53 ",2103,Water Rates,1012,Retford,27.34 
Nottinghamshire Fire and Rescue Service,104256,Advanced Demand Side Management Limited,Advanced Demand Side Management Limited,Operational Responses,5,202404,10/07/2023,P6,9107283,"-6,130.53 ","6,130.53 ",2103,Water Rates,1013,Tuxford,46.72 
Nottinghamshire Fire and Rescue Service,104256,Advanced Demand Side Management Limited,Advanced Demand Side Management Limited,Operational Responses,5,202404,10/07/2023,P6,9107283,"-6,130.53 ","6,130.53 ",2103,Water Rates,1014,Southwell,24.94 
Nottinghamshire Fire and Rescue Service,104256,Advanced Demand Side Management Limited,Advanced Demand Side Management Limited,Operational Responses,5,202404,10/07/2023,P6,9107283,"-6,130.53 ","6,130.53 ",2103,Water Rates,1015,Collingham,28.91 
Nottinghamshire Fire and Rescue Service,104256,Advanced Demand Side Management Limited,Advanced Demand Side Management Limited,Operational Responses,5,202404,10/07/2023,P6,9107283,"-6,130.53 ","6,130.53 ",2103,Water Rates,1016,Newark,2.59 
Nottinghamshire Fire and Rescue Service,104256,Advanced Demand Side Management Limited,Advanced Demand Side Management Limited,Operational Responses,5,202404,10/07/2023,P6,9107283,"-6,130.53 ","6,130.53 ",2103,Water Rates,1016,Newark,94.80 
Nottinghamshire Fire and Rescue Service,104256,Advanced Demand Side Management Limited,Advanced Demand Side Management Limited,Operational Responses,5,202404,10/07/2023,P6,9107283,"-6,130.53 ","6,130.53 ",2103,Water Rates,1016,Newark,264.10 
Nottinghamshire Fire and Rescue Service,104256,Advanced Demand Side Management Limited,Advanced Demand Side Management Limited,Operational Responses,5,202404,10/07/2023,P6,9107283,"-6,130.53 ","6,130.53 ",2103,Water Rates,1016,Newark,413.13 
Nottinghamshire Fire and Rescue Service,104256,Advanced Demand Side Management Limited,Advanced Demand Side Management Limited,Operational Responses,5,202404,10/07/2023,P6,9107283,"-6,130.53 ","6,130.53 ",2103,Water Rates,1017,Bingham,2.32 
Nottinghamshire Fire and Rescue Service,104256,Advanced Demand Side Management Limited,Advanced Demand Side Management Limited,Operational Responses,5,202404,10/07/2023,P6,9107283,"-6,130.53 ","6,130.53 ",2103,Water Rates,1019,West Bridgford,211.56 
Nottinghamshire Fire and Rescue Service,104256,Advanced Demand Side Management Limited,Advanced Demand Side Management Limited,Operational Responses,5,202404,10/07/2023,P6,9107283,"-6,130.53 ","6,130.53 ",2103,Water Rates,1020,Stockhill,9.26 
Nottinghamshire Fire and Rescue Service,104256,Advanced Demand Side Management Limited,Advanced Demand Side Management Limited,Operational Responses,5,202404,10/07/2023,P6,9107283,"-6,130.53 ","6,130.53 ",2103,Water Rates,1023,Stapleford,89.99 
Nottinghamshire Fire and Rescue Service,104256,Advanced Demand Side Management Limited,Advanced Demand Side Management Limited,Operational Responses,5,202404,10/07/2023,P6,9107283,"-6,130.53 ","6,130.53 ",2103,Water Rates,1024,Eastwood,11.39 
Nottinghamshire Fire and Rescue Service,104256,Advanced Demand Side Management Limited,Advanced Demand Side Management Limited,Operational Responses,5,202404,10/07/2023,P6,9107283,"-6,130.53 ","6,130.53 ",2103,Water Rates,1026,Arnold,86.50 
Nottinghamshire Fire and Rescue Service,104256,Advanced Demand Side Management Limited,Advanced Demand Side Management Limited,Operational Responses,5,202404,10/07/2023,P6,9107283,"-6,130.53 ","6,130.53 ",2103,Water Rates,1027,Carlton,148.80 
Nottinghamshire Fire and Rescue Service,104256,Advanced Demand Side Management Limited,Advanced Demand Side Management Limited,Operational Responses,5,202404,10/07/2023,P6,9107283,"-6,130.53 ","6,130.53 ",2103,Water Rates,1028,East Leake,2.32 
Nottinghamshire Fire and Rescue Service,104256,Advanced Demand Side Management Limited,Advanced Demand Side Management Limited,Management & Support Services,5,202404,10/07/2023,P6,9107283,"-6,130.53 ","6,130.53 ",2103,Water Rates,1035,Headquarters,305.96 
Nottinghamshire Fire and Rescue Service,104256,Advanced Demand Side Management Limited,Advanced Demand Side Management Limited,Prevention & Education,5,202404,10/07/2023,P6,9107283,"-6,130.53 ","6,130.53 ",2103,Water Rates,1036,Clifton Community Safety Centre,20.68 
Nottinghamshire Fire and Rescue Service,104256,Advanced Demand Side Management Limited,Advanced Demand Side Management Limited,Operational Responses,5,202404,22/06/2023,P6,9107273,958.51 ,-958.51 ,2103,Water Rates,1008,Worksop,-958.51 
Nottinghamshire Fire and Rescue Service,104256,Advanced Demand Side Management Limited,Advanced Demand Side Management Limited,Operational Responses,5,202404,10/07/2023,P6,9107283,"-6,130.53 ","6,130.53 ",2104,Sewerage and Environmental,1001,Mansfield,46.66 
Nottinghamshire Fire and Rescue Service,104256,Advanced Demand Side Management Limited,Advanced Demand Side Management Limited,Operational Responses,5,202404,10/07/2023,P6,9107283,"-6,130.53 ","6,130.53 ",2104,Sewerage and Environmental,1001,Mansfield,177.97 
Nottinghamshire Fire and Rescue Service,104256,Advanced Demand Side Management Limited,Advanced Demand Side Management Limited,Operational Responses,5,202404,10/07/2023,P6,9107283,"-6,130.53 ","6,130.53 ",2104,Sewerage and Environmental,1002,Blidworth,21.65 
Nottinghamshire Fire and Rescue Service,104256,Advanced Demand Side Management Limited,Advanced Demand Side Management Limited,Operational Responses,5,202404,10/07/2023,P6,9107283,"-6,130.53 ","6,130.53 ",2104,Sewerage and Environmental,1003,London Road,45.89 
Nottinghamshire Fire and Rescue Service,104256,Advanced Demand Side Management Limited,Advanced Demand Side Management Limited,Operational Responses,5,202404,10/07/2023,P6,9107283,"-6,130.53 ","6,130.53 ",2104,Sewerage and Environmental,1005,Ashfield,97.92 
Nottinghamshire Fire and Rescue Service,104256,Advanced Demand Side Management Limited,Advanced Demand Side Management Limited,Operational Responses,5,202404,10/07/2023,P6,9107283,"-6,130.53 ","6,130.53 ",2104,Sewerage and Environmental,1006,Edwinstowe,105.06 
Nottinghamshire Fire and Rescue Service,104256,Advanced Demand Side Management Limited,Advanced Demand Side Management Limited,Operational Responses,5,202404,10/07/2023,P6,9107283,"-6,130.53 ","6,130.53 ",2104,Sewerage and Environmental,1007,Warsop,55.96 
Nottinghamshire Fire and Rescue Service,104256,Advanced Demand Side Management Limited,Advanced Demand Side Management Limited,Operational Responses,5,202404,10/07/2023,P6,9107283,"-6,130.53 ","6,130.53 ",2104,Sewerage and Environmental,1008,Worksop,90.61 
Nottinghamshire Fire and Rescue Service,104256,Advanced Demand Side Management Limited,Advanced Demand Side Management Limited,Operational Responses,5,202404,10/07/2023,P6,9107283,"-6,130.53 ","6,130.53 ",2104,Sewerage and Environmental,1008,Worksop,244.68 
Nottinghamshire Fire and Rescue Service,104256,Advanced Demand Side Management Limited,Advanced Demand Side Management Limited,Operational Responses,5,202404,10/07/2023,P6,9107283,"-6,130.53 ","6,130.53 ",2104,Sewerage and Environmental,1010,Harworth,16.21 
Nottinghamshire Fire and Rescue Service,104256,Advanced Demand Side Management Limited,Advanced Demand Side Management Limited,Operational Responses,5,202404,10/07/2023,P6,9107283,"-6,130.53 ","6,130.53 ",2104,Sewerage and Environmental,1011,Misterton,40.07 
Nottinghamshire Fire and Rescue Service,104256,Advanced Demand Side Management Limited,Advanced Demand Side Management Limited,Operational Responses,5,202404,10/07/2023,P6,9107283,"-6,130.53 ","6,130.53 ",2104,Sewerage and Environmental,1012,Retford,20.72 
Nottinghamshire Fire and Rescue Service,104256,Advanced Demand Side Management Limited,Advanced Demand Side Management Limited,Operational Responses,5,202404,10/07/2023,P6,9107283,"-6,130.53 ","6,130.53 ",2104,Sewerage and Environmental,1012,Retford,102.99 
Nottinghamshire Fire and Rescue Service,104256,Advanced Demand Side Management Limited,Advanced Demand Side Management Limited,Operational Responses,5,202404,10/07/2023,P6,9107283,"-6,130.53 ","6,130.53 ",2104,Sewerage and Environmental,1013,Tuxford,137.00 
Nottinghamshire Fire and Rescue Service,104256,Advanced Demand Side Management Limited,Advanced Demand Side Management Limited,Operational Responses,5,202404,10/07/2023,P6,9107283,"-6,130.53 ","6,130.53 ",2104,Sewerage and Environmental,1014,Southwell,90.99 
Nottinghamshire Fire and Rescue Service,104256,Advanced Demand Side Management Limited,Advanced Demand Side Management Limited,Operational Responses,5,202404,10/07/2023,P6,9107283,"-6,130.53 ","6,130.53 ",2104,Sewerage and Environmental,1015,Collingham,71.76 
Nottinghamshire Fire and Rescue Service,104256,Advanced Demand Side Management Limited,Advanced Demand Side Management Limited,Operational Responses,5,202404,10/07/2023,P6,9107283,"-6,130.53 ","6,130.53 ",2104,Sewerage and Environmental,1016,Newark,176.36 
Nottinghamshire Fire and Rescue Service,104256,Advanced Demand Side Management Limited,Advanced Demand Side Management Limited,Operational Responses,5,202404,10/07/2023,P6,9107283,"-6,130.53 ","6,130.53 ",2104,Sewerage and Environmental,1016,Newark,177.97 
Nottinghamshire Fire and Rescue Service,104256,Advanced Demand Side Management Limited,Advanced Demand Side Management Limited,Operational Responses,5,202404,10/07/2023,P6,9107283,"-6,130.53 ","6,130.53 ",2104,Sewerage and Environmental,1016,Newark,275.62 
Nottinghamshire Fire and Rescue Service,104256,Advanced Demand Side Management Limited,Advanced Demand Side Management Limited,Operational Responses,5,202404,10/07/2023,P6,9107283,"-6,130.53 ","6,130.53 ",2104,Sewerage and Environmental,1016,Newark,399.99 
Nottinghamshire Fire and Rescue Service,104256,Advanced Demand Side Management Limited,Advanced Demand Side Management Limited,Operational Responses,5,202404,10/07/2023,P6,9107283,"-6,130.53 ","6,130.53 ",2104,Sewerage and Environmental,1017,Bingham,75.93 
Nottinghamshire Fire and Rescue Service,104256,Advanced Demand Side Management Limited,Advanced Demand Side Management Limited,Operational Responses,5,202404,10/07/2023,P6,9107283,"-6,130.53 ","6,130.53 ",2104,Sewerage and Environmental,1019,West Bridgford,317.33 
Nottinghamshire Fire and Rescue Service,104256,Advanced Demand Side Management Limited,Advanced Demand Side Management Limited,Operational Responses,5,202404,10/07/2023,P6,9107283,"-6,130.53 ","6,130.53 ",2104,Sewerage and Environmental,1020,Stockhill,182.59 
Nottinghamshire Fire and Rescue Service,104256,Advanced Demand Side Management Limited,Advanced Demand Side Management Limited,Operational Responses,5,202404,10/07/2023,P6,9107283,"-6,130.53 ","6,130.53 ",2104,Sewerage and Environmental,1023,Stapleford,134.32 
Nottinghamshire Fire and Rescue Service,104256,Advanced Demand Side Management Limited,Advanced Demand Side Management Limited,Operational Responses,5,202404,10/07/2023,P6,9107283,"-6,130.53 ","6,130.53 ",2104,Sewerage and Environmental,1024,Eastwood,43.80 
Nottinghamshire Fire and Rescue Service,104256,Advanced Demand Side Management Limited,Advanced Demand Side Management Limited,Operational Responses,5,202404,10/07/2023,P6,9107283,"-6,130.53 ","6,130.53 ",2104,Sewerage and Environmental,1026,Arnold,161.13 
Nottinghamshire Fire and Rescue Service,104256,Advanced Demand Side Management Limited,Advanced Demand Side Management Limited,Operational Responses,5,202404,10/07/2023,P6,9107283,"-6,130.53 ","6,130.53 ",2104,Sewerage and Environmental,1027,Carlton,273.83 
Nottinghamshire Fire and Rescue Service,104256,Advanced Demand Side Management Limited,Advanced Demand Side Management Limited,Operational Responses,5,202404,10/07/2023,P6,9107283,"-6,130.53 ","6,130.53 ",2104,Sewerage and Environmental,1028,East Leake,2.18 
Nottinghamshire Fire and Rescue Service,104256,Advanced Demand Side Management Limited,Advanced Demand Side Management Limited,Management & Support Services,5,202404,10/07/2023,P6,9107283,"-6,130.53 ","6,130.53 ",2104,Sewerage and Environmental,1035,Headquarters,204.24 
Nottinghamshire Fire and Rescue Service,104256,Advanced Demand Side Management Limited,Advanced Demand Side Management Limited,Prevention & Education,5,202404,10/07/2023,P6,9107283,"-6,130.53 ","6,130.53 ",2104,Sewerage and Environmental,1036,Clifton Community Safety Centre,66.28 
Nottinghamshire Fire and Rescue Service,103280,Shred IT Limited,Shred IT Limited,Management & Support Services,5,202404,30/06/2023,P6,9107140,-775.04 ,775.04 ,2106,Refuse / Trade Waste Collection,2086,Procurement,645.87 
Nottinghamshire Fire and Rescue Service,103847,Veolia ES UK Limited,Veolia ES UK Limited,Management & Support Services,5,202404,31/03/2023,P6,9107190,"-1,452.53 ","1,452.53 ",2106,Refuse / Trade Waste Collection,2086,Procurement,"1,210.44 "
Nottinghamshire Fire and Rescue Service,103847,Veolia ES UK Limited,Veolia ES UK Limited,Management & Support Services,5,202404,31/05/2023,P6,9107195,"-1,446.74 ","1,446.74 ",2106,Refuse / Trade Waste Collection,1035,Headquarters,"1,205.62 "
Nottinghamshire Fire and Rescue Service,103847,Veolia ES UK Limited,Veolia ES UK Limited,Management & Support Services,5,202404,30/04/2023,P6,9107196,"-1,262.03 ","1,262.03 ",2106,Refuse / Trade Waste Collection,1035,Headquarters,"1,051.69 "
Nottinghamshire Fire and Rescue Service,100557,NCC Sundry Debtors,NCC Sundry Debtors,Operational Responses,4,202404,01/07/2023,P6,9107136,"-1,925.17 ","1,925.17 ",2201,Grounds Maintenance,1001,Mansfield,38.10 
Nottinghamshire Fire and Rescue Service,100557,NCC Sundry Debtors,NCC Sundry Debtors,Operational Responses,4,202404,01/07/2023,P6,9107136,"-1,925.17 ","1,925.17 ",2201,Grounds Maintenance,1002,Blidworth,67.84 
Nottinghamshire Fire and Rescue Service,100557,NCC Sundry Debtors,NCC Sundry Debtors,Operational Responses,4,202404,01/07/2023,P6,9107136,"-1,925.17 ","1,925.17 ",2201,Grounds Maintenance,1003,London Road,46.25 
Nottinghamshire Fire and Rescue Service,100557,NCC Sundry Debtors,NCC Sundry Debtors,Operational Responses,4,202404,01/07/2023,P6,9107136,"-1,925.17 ","1,925.17 ",2201,Grounds Maintenance,1005,Ashfield,218.75 
Nottinghamshire Fire and Rescue Service,100557,NCC Sundry Debtors,NCC Sundry Debtors,Operational Responses,4,202404,01/07/2023,P6,9107136,"-1,925.17 ","1,925.17 ",2201,Grounds Maintenance,1006,Edwinstowe,45.28 
Nottinghamshire Fire and Rescue Service,100557,NCC Sundry Debtors,NCC Sundry Debtors,Operational Responses,4,202404,01/07/2023,P6,9107136,"-1,925.17 ","1,925.17 ",2201,Grounds Maintenance,1007,Warsop,7.50 
Nottinghamshire Fire and Rescue Service,100557,NCC Sundry Debtors,NCC Sundry Debtors,Operational Responses,4,202404,01/07/2023,P6,9107136,"-1,925.17 ","1,925.17 ",2201,Grounds Maintenance,1010,Harworth,44.25 
Nottinghamshire Fire and Rescue Service,100557,NCC Sundry Debtors,NCC Sundry Debtors,Operational Responses,4,202404,01/07/2023,P6,9107136,"-1,925.17 ","1,925.17 ",2201,Grounds Maintenance,1011,Misterton,39.50 
Nottinghamshire Fire and Rescue Service,100557,NCC Sundry Debtors,NCC Sundry Debtors,Operational Responses,4,202404,01/07/2023,P6,9107136,"-1,925.17 ","1,925.17 ",2201,Grounds Maintenance,1012,Retford,26.76 
Nottinghamshire Fire and Rescue Service,100557,NCC Sundry Debtors,NCC Sundry Debtors,Operational Responses,4,202404,01/07/2023,P6,9107136,"-1,925.17 ","1,925.17 ",2201,Grounds Maintenance,1013,Tuxford,30.00 
Nottinghamshire Fire and Rescue Service,100557,NCC Sundry Debtors,NCC Sundry Debtors,Operational Responses,4,202404,01/07/2023,P6,9107136,"-1,925.17 ","1,925.17 ",2201,Grounds Maintenance,1014,Southwell,36.13 
Nottinghamshire Fire and Rescue Service,100557,NCC Sundry Debtors,NCC Sundry Debtors,Operational Responses,4,202404,01/07/2023,P6,9107136,"-1,925.17 ","1,925.17 ",2201,Grounds Maintenance,1015,Collingham,40.80 
Nottinghamshire Fire and Rescue Service,100557,NCC Sundry Debtors,NCC Sundry Debtors,Operational Responses,4,202404,01/07/2023,P6,9107136,"-1,925.17 ","1,925.17 ",2201,Grounds Maintenance,1016,Newark,40.00 
Nottinghamshire Fire and Rescue Service,100557,NCC Sundry Debtors,NCC Sundry Debtors,Operational Responses,4,202404,01/07/2023,P6,9107136,"-1,925.17 ","1,925.17 ",2201,Grounds Maintenance,1017,Bingham,64.08 
Nottinghamshire Fire and Rescue Service,100557,NCC Sundry Debtors,NCC Sundry Debtors,Operational Responses,4,202404,01/07/2023,P6,9107136,"-1,925.17 ","1,925.17 ",2201,Grounds Maintenance,1019,West Bridgford,84.48 
Nottinghamshire Fire and Rescue Service,100557,NCC Sundry Debtors,NCC Sundry Debtors,Operational Responses,4,202404,01/07/2023,P6,9107136,"-1,925.17 ","1,925.17 ",2201,Grounds Maintenance,1020,Stockhill,216.10 
Nottinghamshire Fire and Rescue Service,100557,NCC Sundry Debtors,NCC Sundry Debtors,Operational Responses,4,202404,01/07/2023,P6,9107136,"-1,925.17 ","1,925.17 ",2201,Grounds Maintenance,1023,Stapleford,80.50 
Nottinghamshire Fire and Rescue Service,100557,NCC Sundry Debtors,NCC Sundry Debtors,Operational Responses,4,202404,01/07/2023,P6,9107136,"-1,925.17 ","1,925.17 ",2201,Grounds Maintenance,1024,Eastwood,28.75 
Nottinghamshire Fire and Rescue Service,100557,NCC Sundry Debtors,NCC Sundry Debtors,Operational Responses,4,202404,01/07/2023,P6,9107136,"-1,925.17 ","1,925.17 ",2201,Grounds Maintenance,1026,Arnold,22.08 
Nottinghamshire Fire and Rescue Service,100557,NCC Sundry Debtors,NCC Sundry Debtors,Operational Responses,4,202404,01/07/2023,P6,9107136,"-1,925.17 ","1,925.17 ",2201,Grounds Maintenance,1027,Carlton,39.58 
Nottinghamshire Fire and Rescue Service,100557,NCC Sundry Debtors,NCC Sundry Debtors,Operational Responses,4,202404,01/07/2023,P6,9107136,"-1,925.17 ","1,925.17 ",2201,Grounds Maintenance,1028,East Leake,133.75 
Nottinghamshire Fire and Rescue Service,100557,NCC Sundry Debtors,NCC Sundry Debtors,Operational Responses,4,202404,01/07/2023,P6,9107136,"-1,925.17 ","1,925.17 ",2201,Grounds Maintenance,1029,Highfields Station,97.08 
Nottinghamshire Fire and Rescue Service,100557,NCC Sundry Debtors,NCC Sundry Debtors,Management & Support Services,4,202404,01/07/2023,P6,9107136,"-1,925.17 ","1,925.17 ",2201,Grounds Maintenance,1030,Service Development Centre,156.75 
Nottinghamshire Fire and Rescue Service,100557,NCC Sundry Debtors,NCC Sundry Debtors,Operational Responses,4,202404,01/07/2023,P6,9107081,"-39,783.70 ","39,783.70 ",2204,Contract Cleaning,1001,Mansfield,"2,845.17 "
Nottinghamshire Fire and Rescue Service,100557,NCC Sundry Debtors,NCC Sundry Debtors,Operational Responses,4,202404,01/07/2023,P6,9107081,"-39,783.70 ","39,783.70 ",2204,Contract Cleaning,1002,Blidworth,268.77 
Nottinghamshire Fire and Rescue Service,100557,NCC Sundry Debtors,NCC Sundry Debtors,Operational Responses,4,202404,01/07/2023,P6,9107081,"-39,783.70 ","39,783.70 ",2204,Contract Cleaning,1003,London Road,"3,037.54 "
Nottinghamshire Fire and Rescue Service,100557,NCC Sundry Debtors,NCC Sundry Debtors,Operational Responses,4,202404,01/07/2023,P6,9107081,"-39,783.70 ","39,783.70 ",2204,Contract Cleaning,1005,Ashfield,"1,498.54 "
Nottinghamshire Fire and Rescue Service,100557,NCC Sundry Debtors,NCC Sundry Debtors,Operational Responses,4,202404,01/07/2023,P6,9107081,"-39,783.70 ","39,783.70 ",2204,Contract Cleaning,1006,Edwinstowe,"1,152.27 "
Nottinghamshire Fire and Rescue Service,100557,NCC Sundry Debtors,NCC Sundry Debtors,Operational Responses,4,202404,01/07/2023,P6,9107081,"-39,783.70 ","39,783.70 ",2204,Contract Cleaning,1007,Warsop,230.29 
Nottinghamshire Fire and Rescue Service,100557,NCC Sundry Debtors,NCC Sundry Debtors,Operational Responses,4,202404,01/07/2023,P6,9107081,"-39,783.70 ","39,783.70 ",2204,Contract Cleaning,1008,Worksop,"1,883.29 "
Nottinghamshire Fire and Rescue Service,100557,NCC Sundry Debtors,NCC Sundry Debtors,Operational Responses,4,202404,01/07/2023,P6,9107081,"-39,783.70 ","39,783.70 ",2204,Contract Cleaning,1010,Harworth,422.67 
Nottinghamshire Fire and Rescue Service,100557,NCC Sundry Debtors,NCC Sundry Debtors,Operational Responses,4,202404,01/07/2023,P6,9107081,"-39,783.70 ","39,783.70 ",2204,Contract Cleaning,1011,Misterton,345.72 
Nottinghamshire Fire and Rescue Service,100557,NCC Sundry Debtors,NCC Sundry Debtors,Operational Responses,4,202404,01/07/2023,P6,9107081,"-39,783.70 ","39,783.70 ",2204,Contract Cleaning,1012,Retford,"1,921.77 "
Nottinghamshire Fire and Rescue Service,100557,NCC Sundry Debtors,NCC Sundry Debtors,Operational Responses,4,202404,01/07/2023,P6,9107081,"-39,783.70 ","39,783.70 ",2204,Contract Cleaning,1013,Tuxford,268.77 
Nottinghamshire Fire and Rescue Service,100557,NCC Sundry Debtors,NCC Sundry Debtors,Operational Responses,4,202404,01/07/2023,P6,9107081,"-39,783.70 ","39,783.70 ",2204,Contract Cleaning,1014,Southwell,384.19 
Nottinghamshire Fire and Rescue Service,100557,NCC Sundry Debtors,NCC Sundry Debtors,Operational Responses,4,202404,01/07/2023,P6,9107081,"-39,783.70 ","39,783.70 ",2204,Contract Cleaning,1015,Collingham,384.19 
Nottinghamshire Fire and Rescue Service,100557,NCC Sundry Debtors,NCC Sundry Debtors,Operational Responses,4,202404,01/07/2023,P6,9107081,"-39,783.70 ","39,783.70 ",2204,Contract Cleaning,1016,Newark,"1,498.54 "
Nottinghamshire Fire and Rescue Service,100557,NCC Sundry Debtors,NCC Sundry Debtors,Operational Responses,4,202404,01/07/2023,P6,9107081,"-39,783.70 ","39,783.70 ",2204,Contract Cleaning,1017,Bingham,268.77 
Nottinghamshire Fire and Rescue Service,100557,NCC Sundry Debtors,NCC Sundry Debtors,Operational Responses,4,202404,01/07/2023,P6,9107081,"-39,783.70 ","39,783.70 ",2204,Contract Cleaning,1019,West Bridgford,"2,306.52 "
Nottinghamshire Fire and Rescue Service,100557,NCC Sundry Debtors,NCC Sundry Debtors,Operational Responses,4,202404,01/07/2023,P6,9107081,"-39,783.70 ","39,783.70 ",2204,Contract Cleaning,1020,Stockhill,"1,883.29 "
Nottinghamshire Fire and Rescue Service,100557,NCC Sundry Debtors,NCC Sundry Debtors,Operational Responses,4,202404,01/07/2023,P6,9107081,"-39,783.70 ","39,783.70 ",2204,Contract Cleaning,1023,Stapleford,615.04 
Nottinghamshire Fire and Rescue Service,100557,NCC Sundry Debtors,NCC Sundry Debtors,Operational Responses,4,202404,01/07/2023,P6,9107081,"-39,783.70 ","39,783.70 ",2204,Contract Cleaning,1024,Eastwood,422.67 
Nottinghamshire Fire and Rescue Service,100557,NCC Sundry Debtors,NCC Sundry Debtors,Operational Responses,4,202404,01/07/2023,P6,9107081,"-39,783.70 ","39,783.70 ",2204,Contract Cleaning,1026,Arnold,"1,402.35 "
Nottinghamshire Fire and Rescue Service,100557,NCC Sundry Debtors,NCC Sundry Debtors,Operational Responses,4,202404,01/07/2023,P6,9107081,"-39,783.70 ","39,783.70 ",2204,Contract Cleaning,1027,Carlton,"2,652.79 "
Nottinghamshire Fire and Rescue Service,100557,NCC Sundry Debtors,NCC Sundry Debtors,Operational Responses,4,202404,01/07/2023,P6,9107081,"-39,783.70 ","39,783.70 ",2204,Contract Cleaning,1028,East Leake,268.77 
Nottinghamshire Fire and Rescue Service,100557,NCC Sundry Debtors,NCC Sundry Debtors,Operational Responses,4,202404,01/07/2023,P6,9107081,"-39,783.70 ","39,783.70 ",2204,Contract Cleaning,1029,Highfields Station,"5,075.59 "
Nottinghamshire Fire and Rescue Service,100557,NCC Sundry Debtors,NCC Sundry Debtors,Management & Support Services,4,202404,01/07/2023,P6,9107081,"-39,783.70 ","39,783.70 ",2204,Contract Cleaning,1030,Service Development Centre,"2,115.57 "
Nottinghamshire Fire and Rescue Service,100557,NCC Sundry Debtors,NCC Sundry Debtors,Operational Responses,4,202404,01/07/2023,P6,9107134,-864.00 ,864.00 ,2204,Contract Cleaning,1001,Mansfield,30.00 
Nottinghamshire Fire and Rescue Service,100557,NCC Sundry Debtors,NCC Sundry Debtors,Operational Responses,4,202404,01/07/2023,P6,9107134,-864.00 ,864.00 ,2204,Contract Cleaning,1002,Blidworth,30.00 
Nottinghamshire Fire and Rescue Service,100557,NCC Sundry Debtors,NCC Sundry Debtors,Operational Responses,4,202404,01/07/2023,P6,9107134,-864.00 ,864.00 ,2204,Contract Cleaning,1003,London Road,30.00 
Nottinghamshire Fire and Rescue Service,100557,NCC Sundry Debtors,NCC Sundry Debtors,Operational Responses,4,202404,01/07/2023,P6,9107134,-864.00 ,864.00 ,2204,Contract Cleaning,1005,Ashfield,30.00 
Nottinghamshire Fire and Rescue Service,100557,NCC Sundry Debtors,NCC Sundry Debtors,Operational Responses,4,202404,01/07/2023,P6,9107134,-864.00 ,864.00 ,2204,Contract Cleaning,1006,Edwinstowe,30.00 
Nottinghamshire Fire and Rescue Service,100557,NCC Sundry Debtors,NCC Sundry Debtors,Operational Responses,4,202404,01/07/2023,P6,9107134,-864.00 ,864.00 ,2204,Contract Cleaning,1007,Warsop,30.00 
Nottinghamshire Fire and Rescue Service,100557,NCC Sundry Debtors,NCC Sundry Debtors,Operational Responses,4,202404,01/07/2023,P6,9107134,-864.00 ,864.00 ,2204,Contract Cleaning,1008,Worksop,30.00 
Nottinghamshire Fire and Rescue Service,100557,NCC Sundry Debtors,NCC Sundry Debtors,Operational Responses,4,202404,01/07/2023,P6,9107134,-864.00 ,864.00 ,2204,Contract Cleaning,1010,Harworth,30.00 
Nottinghamshire Fire and Rescue Service,100557,NCC Sundry Debtors,NCC Sundry Debtors,Operational Responses,4,202404,01/07/2023,P6,9107134,-864.00 ,864.00 ,2204,Contract Cleaning,1011,Misterton,30.00 
Nottinghamshire Fire and Rescue Service,100557,NCC Sundry Debtors,NCC Sundry Debtors,Operational Responses,4,202404,01/07/2023,P6,9107134,-864.00 ,864.00 ,2204,Contract Cleaning,1012,Retford,30.00 
Nottinghamshire Fire and Rescue Service,100557,NCC Sundry Debtors,NCC Sundry Debtors,Operational Responses,4,202404,01/07/2023,P6,9107134,-864.00 ,864.00 ,2204,Contract Cleaning,1013,Tuxford,30.00 
Nottinghamshire Fire and Rescue Service,100557,NCC Sundry Debtors,NCC Sundry Debtors,Operational Responses,4,202404,01/07/2023,P6,9107134,-864.00 ,864.00 ,2204,Contract Cleaning,1014,Southwell,30.00 
Nottinghamshire Fire and Rescue Service,100557,NCC Sundry Debtors,NCC Sundry Debtors,Operational Responses,4,202404,01/07/2023,P6,9107134,-864.00 ,864.00 ,2204,Contract Cleaning,1015,Collingham,30.00 
Nottinghamshire Fire and Rescue Service,100557,NCC Sundry Debtors,NCC Sundry Debtors,Operational Responses,4,202404,01/07/2023,P6,9107134,-864.00 ,864.00 ,2204,Contract Cleaning,1016,Newark,30.00 
Nottinghamshire Fire and Rescue Service,100557,NCC Sundry Debtors,NCC Sundry Debtors,Operational Responses,4,202404,01/07/2023,P6,9107134,-864.00 ,864.00 ,2204,Contract Cleaning,1017,Bingham,30.00 
Nottinghamshire Fire and Rescue Service,100557,NCC Sundry Debtors,NCC Sundry Debtors,Operational Responses,4,202404,01/07/2023,P6,9107134,-864.00 ,864.00 ,2204,Contract Cleaning,1019,West Bridgford,30.00 
Nottinghamshire Fire and Rescue Service,100557,NCC Sundry Debtors,NCC Sundry Debtors,Operational Responses,4,202404,01/07/2023,P6,9107134,-864.00 ,864.00 ,2204,Contract Cleaning,1020,Stockhill,30.00 
Nottinghamshire Fire and Rescue Service,100557,NCC Sundry Debtors,NCC Sundry Debtors,Operational Responses,4,202404,01/07/2023,P6,9107134,-864.00 ,864.00 ,2204,Contract Cleaning,1023,Stapleford,30.00 
Nottinghamshire Fire and Rescue Service,100557,NCC Sundry Debtors,NCC Sundry Debtors,Operational Responses,4,202404,01/07/2023,P6,9107134,-864.00 ,864.00 ,2204,Contract Cleaning,1024,Eastwood,30.00 
Nottinghamshire Fire and Rescue Service,100557,NCC Sundry Debtors,NCC Sundry Debtors,Operational Responses,4,202404,01/07/2023,P6,9107134,-864.00 ,864.00 ,2204,Contract Cleaning,1026,Arnold,30.00 
Nottinghamshire Fire and Rescue Service,100557,NCC Sundry Debtors,NCC Sundry Debtors,Operational Responses,4,202404,01/07/2023,P6,9107134,-864.00 ,864.00 ,2204,Contract Cleaning,1027,Carlton,30.00 
Nottinghamshire Fire and Rescue Service,100557,NCC Sundry Debtors,NCC Sundry Debtors,Operational Responses,4,202404,01/07/2023,P6,9107134,-864.00 ,864.00 ,2204,Contract Cleaning,1028,East Leake,30.00 
Nottinghamshire Fire and Rescue Service,100557,NCC Sundry Debtors,NCC Sundry Debtors,Operational Responses,4,202404,01/07/2023,P6,9107134,-864.00 ,864.00 ,2204,Contract Cleaning,1029,Highfields Station,30.00 
Nottinghamshire Fire and Rescue Service,100557,NCC Sundry Debtors,NCC Sundry Debtors,Management & Support Services,4,202404,01/07/2023,P6,9107134,-864.00 ,864.00 ,2204,Contract Cleaning,1030,Service Development Centre,30.00 
Nottinghamshire Fire and Rescue Service,103337,Falcon Environmental Limited,Falcon Environmental Limited,Management & Support Services,5,202404,22/07/2023,P6,9107404,-336.00 ,336.00 ,2204,Contract Cleaning,2087,Estates Department (Previously Premises),280.00 
Nottinghamshire Fire and Rescue Service,103337,Falcon Environmental Limited,Falcon Environmental Limited,Operational Responses,5,202404,22/07/2023,P6,9107405,"-3,420.00 ","3,420.00 ",2204,Contract Cleaning,1001,Mansfield,"2,850.00 "
Nottinghamshire Fire and Rescue Service,100557,NCC Sundry Debtors,NCC Sundry Debtors,Operational Responses,4,202404,01/07/2023,P6,9107137,-848.00 ,848.00 ,2205,Window Cleaning,1001,Mansfield,50.00 
Nottinghamshire Fire and Rescue Service,100557,NCC Sundry Debtors,NCC Sundry Debtors,Operational Responses,4,202404,01/07/2023,P6,9107137,-848.00 ,848.00 ,2205,Window Cleaning,1002,Blidworth,20.00 
Nottinghamshire Fire and Rescue Service,100557,NCC Sundry Debtors,NCC Sundry Debtors,Operational Responses,4,202404,01/07/2023,P6,9107137,-848.00 ,848.00 ,2205,Window Cleaning,1003,London Road,41.67 
Nottinghamshire Fire and Rescue Service,100557,NCC Sundry Debtors,NCC Sundry Debtors,Operational Responses,4,202404,01/07/2023,P6,9107137,-848.00 ,848.00 ,2205,Window Cleaning,1005,Ashfield,33.33 
Nottinghamshire Fire and Rescue Service,100557,NCC Sundry Debtors,NCC Sundry Debtors,Operational Responses,4,202404,01/07/2023,P6,9107137,-848.00 ,848.00 ,2205,Window Cleaning,1006,Edwinstowe,33.33 
Nottinghamshire Fire and Rescue Service,100557,NCC Sundry Debtors,NCC Sundry Debtors,Operational Responses,4,202404,01/07/2023,P6,9107137,-848.00 ,848.00 ,2205,Window Cleaning,1007,Warsop,21.67 
Nottinghamshire Fire and Rescue Service,100557,NCC Sundry Debtors,NCC Sundry Debtors,Operational Responses,4,202404,01/07/2023,P6,9107137,-848.00 ,848.00 ,2205,Window Cleaning,1008,Worksop,20.00 
Nottinghamshire Fire and Rescue Service,100557,NCC Sundry Debtors,NCC Sundry Debtors,Operational Responses,4,202404,01/07/2023,P6,9107137,-848.00 ,848.00 ,2205,Window Cleaning,1010,Harworth,21.67 
Nottinghamshire Fire and Rescue Service,100557,NCC Sundry Debtors,NCC Sundry Debtors,Operational Responses,4,202404,01/07/2023,P6,9107137,-848.00 ,848.00 ,2205,Window Cleaning,1011,Misterton,20.00 
Nottinghamshire Fire and Rescue Service,100557,NCC Sundry Debtors,NCC Sundry Debtors,Operational Responses,4,202404,01/07/2023,P6,9107137,-848.00 ,848.00 ,2205,Window Cleaning,1012,Retford,50.00 
Nottinghamshire Fire and Rescue Service,100557,NCC Sundry Debtors,NCC Sundry Debtors,Operational Responses,4,202404,01/07/2023,P6,9107137,-848.00 ,848.00 ,2205,Window Cleaning,1013,Tuxford,18.33 
Nottinghamshire Fire and Rescue Service,100557,NCC Sundry Debtors,NCC Sundry Debtors,Operational Responses,4,202404,01/07/2023,P6,9107137,-848.00 ,848.00 ,2205,Window Cleaning,1014,Southwell,16.67 
Nottinghamshire Fire and Rescue Service,100557,NCC Sundry Debtors,NCC Sundry Debtors,Operational Responses,4,202404,01/07/2023,P6,9107137,-848.00 ,848.00 ,2205,Window Cleaning,1015,Collingham,18.33 
Nottinghamshire Fire and Rescue Service,100557,NCC Sundry Debtors,NCC Sundry Debtors,Operational Responses,4,202404,01/07/2023,P6,9107137,-848.00 ,848.00 ,2205,Window Cleaning,1016,Newark,25.00 
Nottinghamshire Fire and Rescue Service,100557,NCC Sundry Debtors,NCC Sundry Debtors,Operational Responses,4,202404,01/07/2023,P6,9107137,-848.00 ,848.00 ,2205,Window Cleaning,1017,Bingham,16.67 
Nottinghamshire Fire and Rescue Service,100557,NCC Sundry Debtors,NCC Sundry Debtors,Operational Responses,4,202404,01/07/2023,P6,9107137,-848.00 ,848.00 ,2205,Window Cleaning,1019,West Bridgford,50.00 
Nottinghamshire Fire and Rescue Service,100557,NCC Sundry Debtors,NCC Sundry Debtors,Operational Responses,4,202404,01/07/2023,P6,9107137,-848.00 ,848.00 ,2205,Window Cleaning,1020,Stockhill,50.00 
Nottinghamshire Fire and Rescue Service,100557,NCC Sundry Debtors,NCC Sundry Debtors,Operational Responses,4,202404,01/07/2023,P6,9107137,-848.00 ,848.00 ,2205,Window Cleaning,1023,Stapleford,18.33 
Nottinghamshire Fire and Rescue Service,100557,NCC Sundry Debtors,NCC Sundry Debtors,Operational Responses,4,202404,01/07/2023,P6,9107137,-848.00 ,848.00 ,2205,Window Cleaning,1024,Eastwood,20.00 
Nottinghamshire Fire and Rescue Service,100557,NCC Sundry Debtors,NCC Sundry Debtors,Operational Responses,4,202404,01/07/2023,P6,9107137,-848.00 ,848.00 ,2205,Window Cleaning,1026,Arnold,25.00 
Nottinghamshire Fire and Rescue Service,100557,NCC Sundry Debtors,NCC Sundry Debtors,Operational Responses,4,202404,01/07/2023,P6,9107137,-848.00 ,848.00 ,2205,Window Cleaning,1027,Carlton,33.33 
Nottinghamshire Fire and Rescue Service,100557,NCC Sundry Debtors,NCC Sundry Debtors,Operational Responses,4,202404,01/07/2023,P6,9107137,-848.00 ,848.00 ,2205,Window Cleaning,1028,East Leake,16.67 
Nottinghamshire Fire and Rescue Service,100557,NCC Sundry Debtors,NCC Sundry Debtors,Operational Responses,4,202404,01/07/2023,P6,9107137,-848.00 ,848.00 ,2205,Window Cleaning,1029,Highfields Station,66.67 
Nottinghamshire Fire and Rescue Service,100557,NCC Sundry Debtors,NCC Sundry Debtors,Management & Support Services,4,202404,01/07/2023,P6,9107137,-848.00 ,848.00 ,2205,Window Cleaning,1030,Service Development Centre,20.00 
Nottinghamshire Fire and Rescue Service,102280,Amptron Electrical Services,Amptron Electrical Services,Operational Responses,1,202404,22/03/2023,P6,9107250,-314.21 ,314.21 ,2300,Boarding Up Premises,1003,London Road,261.84 
Nottinghamshire Fire and Rescue Service,100411,William G search,William G search,Management & Support Services,1,202404,25/05/2023,P6,9107132,-480.00 ,480.00 ,3002,Purchase of Vehicle Equipment,2084,Engineering,400.00 
Nottinghamshire Fire and Rescue Service,103820,VIA East Midlands Ltd,VIA East Midlands Ltd,Management & Support Services,5,202404,30/06/2023,P6,9107176,"-25,070.38 ","25,070.38 ",3100,Fleet Maintenance - Planned,2084,Engineering,"20,910.76 "
Nottinghamshire Fire and Rescue Service,102364,Woodway Engineering Limited,Woodway Engineering Limited,Management & Support Services,1,202404,28/06/2023,P6,9107092,-570.00 ,570.00 ,3101,Fleet Modification,2084,Engineering,475.00 
Nottinghamshire Fire and Rescue Service,102228,Keltruck Limited,Keltruck Limited,Management & Support Services,1,202404,06/07/2023,P6,9107125,-420.00 ,420.00 ,3102,Vehicle Maintenance Outsourced,2084,Engineering,350.00 
Nottinghamshire Fire and Rescue Service,102228,Keltruck Limited,Keltruck Limited,Management & Support Services,1,202404,12/07/2023,P6,9107207,"-2,551.37 ","2,551.37 ",3102,Vehicle Maintenance Outsourced,2084,Engineering,"2,126.14 "
Nottinghamshire Fire and Rescue Service,102228,Keltruck Limited,Keltruck Limited,Management & Support Services,1,202404,12/07/2023,P6,9107208,"-7,006.85 ","7,006.85 ",3102,Vehicle Maintenance Outsourced,2084,Engineering,"5,839.04 "
Nottinghamshire Fire and Rescue Service,101723,Beeston Marina Limited,Beeston Marina Limited,Management & Support Services,1,202404,19/07/2023,P6,9107383,-397.83 ,397.83 ,3102,Vehicle Maintenance Outsourced,2084,Engineering,331.53 
Nottinghamshire Fire and Rescue Service,102131,Nottingham Audi,Nottingham Audi,Management & Support Services,1,202404,22/06/2023,P6,9107426,-350.00 ,350.00 ,3102,Vehicle Maintenance Outsourced,2084,Engineering,291.67 
Nottinghamshire Fire and Rescue Service,104192,Disc-Lock Europe Limited,Disc-Lock Europe Limited,Management & Support Services,5,202404,25/07/2023,P6,9107434,"-5,770.80 ","5,770.80 ",3102,Vehicle Maintenance Outsourced,2084,Engineering,"4,809.00 "
Nottinghamshire Fire and Rescue Service,102951,Logistics UK,Logistics UK,Management & Support Services,5,202404,25/07/2023,P6,9107458,"-5,632.10 ","5,632.10 ",3102,Vehicle Maintenance Outsourced,2084,Engineering,"4,693.42 "
Nottinghamshire Fire and Rescue Service,103820,VIA East Midlands Ltd,VIA East Midlands Ltd,Management & Support Services,5,202404,30/06/2023,P6,9107421,"-100,347.50 ","100,347.50 ",3103,Fleet Maintenance - Unplanned,2084,Engineering,"83,622.92 "
Nottinghamshire Fire and Rescue Service,103820,VIA East Midlands Ltd,VIA East Midlands Ltd,Management & Support Services,5,202404,30/06/2023,P6,9107201,"-1,102.33 ","1,102.33 ",3104,Fleet - Accident Repairs,2084,Engineering,918.61 
Nottinghamshire Fire and Rescue Service,103766,CERTAS,CERTAS,Operational Responses,5,202404,06/07/2023,P6,9107127,"-9,806.20 ","9,806.20 ",3200,Fuel - Vehicle,1029,Highfields Station,"8,171.83 "
Nottinghamshire Fire and Rescue Service,103943,Teletrac Navman (UK) Limited,Teletrac Navman (UK) Limited,Management & Support Services,5,202404,01/07/2023,P6,9107097,"-1,071.96 ","1,071.96 ",3203,Motor Tax / Licenses,2084,Engineering,893.30 
Nottinghamshire Fire and Rescue Service,104196,Central Cars Nottingham Limited,Central Cars Nottingham Limited,Management & Support Services,5,202404,19/06/2023,P6,9107086,-265.32 ,265.32 ,3504,Public Transport,2054,Equalities Team,221.10 
Nottinghamshire Fire and Rescue Service,104196,Central Cars Nottingham Limited,Central Cars Nottingham Limited,Management & Support Services,5,202404,10/07/2023,P6,9107247,-277.68 ,277.68 ,3504,Public Transport,2054,Equalities Team,231.40 
Nottinghamshire Fire and Rescue Service,102495,Rosenbauer UK Plc,Rosenbauer UK Plc,Management & Support Services,1,202404,30/06/2023,P6,9107091,"-1,616.40 ","1,616.40 ",4000,Operational Equipment Purchase,2084,Engineering,"1,347.00 "
Nottinghamshire Fire and Rescue Service,102495,Rosenbauer UK Plc,Rosenbauer UK Plc,Management & Support Services,1,202404,30/06/2023,P6,9107106,"-1,121.40 ","1,121.40 ",4000,Operational Equipment Purchase,2084,Engineering,934.50 
Nottinghamshire Fire and Rescue Service,103443,Terberg DTS UK Limited,Terberg DTS UK Limited,Management & Support Services,5,202404,11/07/2023,P6,9107146,-987.07 ,987.07 ,4000,Operational Equipment Purchase,2084,Engineering,822.56 
Nottinghamshire Fire and Rescue Service,103443,Terberg DTS UK Limited,Terberg DTS UK Limited,Management & Support Services,5,202404,11/07/2023,P6,9107147,-628.25 ,628.25 ,4000,Operational Equipment Purchase,2084,Engineering,523.55 
Nottinghamshire Fire and Rescue Service,103443,Terberg DTS UK Limited,Terberg DTS UK Limited,Management & Support Services,5,202404,11/07/2023,P6,9107148,"-2,122.90 ","2,122.90 ",4000,Operational Equipment Purchase,2084,Engineering,"1,769.08 "
Nottinghamshire Fire and Rescue Service,103443,Terberg DTS UK Limited,Terberg DTS UK Limited,Management & Support Services,5,202404,11/07/2023,P6,9107149,"-2,122.90 ","2,122.90 ",4000,Operational Equipment Purchase,2084,Engineering,"1,769.08 "
Nottinghamshire Fire and Rescue Service,102119,Radiocoms Systems Ltd,Radiocoms Systems Ltd,Management & Support Services,1,202404,07/07/2023,P6,9107255,-383.98 ,383.98 ,4000,Operational Equipment Purchase,2084,Engineering,20.00 
Nottinghamshire Fire and Rescue Service,102119,Radiocoms Systems Ltd,Radiocoms Systems Ltd,Management & Support Services,1,202404,07/07/2023,P6,9107255,-383.98 ,383.98 ,4000,Operational Equipment Purchase,2084,Engineering,299.98 
Nottinghamshire Fire and Rescue Service,103443,Terberg DTS UK Limited,Terberg DTS UK Limited,Management & Support Services,5,202404,14/07/2023,P6,9107289,-322.74 ,322.74 ,4000,Operational Equipment Purchase,2084,Engineering,268.95 
Nottinghamshire Fire and Rescue Service,103443,Terberg DTS UK Limited,Terberg DTS UK Limited,Management & Support Services,5,202404,18/07/2023,P6,9107306,-534.95 ,534.95 ,4000,Operational Equipment Purchase,2084,Engineering,445.79 
Nottinghamshire Fire and Rescue Service,103443,Terberg DTS UK Limited,Terberg DTS UK Limited,Management & Support Services,5,202404,18/07/2023,P6,9107307,"-2,086.90 ","2,086.90 ",4000,Operational Equipment Purchase,2084,Engineering,"1,739.08 "
Nottinghamshire Fire and Rescue Service,103443,Terberg DTS UK Limited,Terberg DTS UK Limited,Management & Support Services,5,202404,18/07/2023,P6,9107308,-312.02 ,312.02 ,4000,Operational Equipment Purchase,2084,Engineering,260.02 
Nottinghamshire Fire and Rescue Service,103443,Terberg DTS UK Limited,Terberg DTS UK Limited,Management & Support Services,5,202404,18/07/2023,P6,9107309,-315.46 ,315.46 ,4000,Operational Equipment Purchase,2084,Engineering,262.88 
Nottinghamshire Fire and Rescue Service,103443,Terberg DTS UK Limited,Terberg DTS UK Limited,Management & Support Services,5,202404,18/07/2023,P6,9107316,"-1,072.20 ","1,072.20 ",4000,Operational Equipment Purchase,2084,Engineering,893.50 
Nottinghamshire Fire and Rescue Service,101803,Premier Hose Technologies Ltd,Premier Hose Technologies Ltd,Management & Support Services,1,202404,19/07/2023,P6,9107389,-656.92 ,656.92 ,4000,Operational Equipment Purchase,2084,Engineering,547.43 
Nottinghamshire Fire and Rescue Service,103094,Draeger Safety UK Limited,Draeger Safety UK Limited,Management & Support Services,5,202404,04/07/2023,P6,9107089,"-2,640.00 ","2,640.00 ",4002,Breathing Apparatus,2084,Engineering,"2,200.00 "
Nottinghamshire Fire and Rescue Service,101803,Premier Hose Technologies Ltd,Premier Hose Technologies Ltd,Management & Support Services,1,202404,27/07/2023,P6,9107466,-598.75 ,598.75 ,4004,Fire Hose and Couplings,2084,Engineering,498.96 
Nottinghamshire Fire and Rescue Service,102203,Flogas Britian Limited,Flogas Britian Limited,Management & Support Services,1,202404,15/07/2023,P6,9107337,"-1,289.57 ","1,289.57 ",4006,Oxygen and Other Gases,2084,Engineering,"1,074.64 "
Nottinghamshire Fire and Rescue Service,101890,Survitec Service & Distribution Ltd,Survitec Service & Distribution Ltd,Management & Support Services,1,202404,05/07/2023,P6,9107114,-752.00 ,752.00 ,4007,Equipment Annual Service,2084,Engineering,626.66 
Nottinghamshire Fire and Rescue Service,101867,Nottinghamshire Police and Crime Commissioner,Nottinghamshire Police and Crime Commissioner,Management & Support Services,4,202404,06/07/2023,P6,9107120,-892.49 ,892.49 ,4007,Equipment Annual Service,2084,Engineering,892.49 
Nottinghamshire Fire and Rescue Service,103443,Terberg DTS UK Limited,Terberg DTS UK Limited,Management & Support Services,5,202404,12/07/2023,P6,9107182,-709.70 ,709.70 ,4007,Equipment Annual Service,2084,Engineering,591.42 
Nottinghamshire Fire and Rescue Service,103443,Terberg DTS UK Limited,Terberg DTS UK Limited,Management & Support Services,5,202404,12/07/2023,P6,9107183,-808.03 ,808.03 ,4007,Equipment Annual Service,2084,Engineering,673.36 
Nottinghamshire Fire and Rescue Service,103443,Terberg DTS UK Limited,Terberg DTS UK Limited,Management & Support Services,5,202404,12/07/2023,P6,9107184,"-1,582.65 ","1,582.65 ",4007,Equipment Annual Service,2084,Engineering,"1,318.87 "
Nottinghamshire Fire and Rescue Service,103443,Terberg DTS UK Limited,Terberg DTS UK Limited,Management & Support Services,5,202404,12/07/2023,P6,9107185,-709.70 ,709.70 ,4007,Equipment Annual Service,2084,Engineering,591.42 
Nottinghamshire Fire and Rescue Service,103443,Terberg DTS UK Limited,Terberg DTS UK Limited,Management & Support Services,5,202404,12/07/2023,P6,9107210,-700.58 ,700.58 ,4007,Equipment Annual Service,2084,Engineering,583.82 
Nottinghamshire Fire and Rescue Service,103443,Terberg DTS UK Limited,Terberg DTS UK Limited,Management & Support Services,5,202404,12/07/2023,P6,9107211,"-3,076.26 ","3,076.26 ",4007,Equipment Annual Service,2084,Engineering,"2,563.55 "
Nottinghamshire Fire and Rescue Service,103443,Terberg DTS UK Limited,Terberg DTS UK Limited,Management & Support Services,5,202404,17/07/2023,P6,9107303,"-1,817.79 ","1,817.79 ",4007,Equipment Annual Service,2084,Engineering,"1,514.82 "
Nottinghamshire Fire and Rescue Service,103443,Terberg DTS UK Limited,Terberg DTS UK Limited,Management & Support Services,5,202404,17/07/2023,P6,9107361,"-3,454.25 ","3,454.25 ",4007,Equipment Annual Service,2084,Engineering,"2,878.54 "
Nottinghamshire Fire and Rescue Service,103443,Terberg DTS UK Limited,Terberg DTS UK Limited,Management & Support Services,5,202404,17/07/2023,P6,9107362,-844.39 ,844.39 ,4007,Equipment Annual Service,2084,Engineering,703.66 
Nottinghamshire Fire and Rescue Service,103443,Terberg DTS UK Limited,Terberg DTS UK Limited,Management & Support Services,5,202404,17/07/2023,P6,9107363,"-1,517.93 ","1,517.93 ",4007,Equipment Annual Service,2084,Engineering,"1,264.94 "
Nottinghamshire Fire and Rescue Service,103443,Terberg DTS UK Limited,Terberg DTS UK Limited,Management & Support Services,5,202404,17/07/2023,P6,9107364,-808.03 ,808.03 ,4007,Equipment Annual Service,2084,Engineering,673.36 
Nottinghamshire Fire and Rescue Service,103443,Terberg DTS UK Limited,Terberg DTS UK Limited,Management & Support Services,5,202404,17/07/2023,P6,9107365,-808.03 ,808.03 ,4007,Equipment Annual Service,2084,Engineering,673.36 
Nottinghamshire Fire and Rescue Service,103443,Terberg DTS UK Limited,Terberg DTS UK Limited,Management & Support Services,5,202404,17/07/2023,P6,9107366,"-5,317.54 ","5,317.54 ",4007,Equipment Annual Service,2084,Engineering,"4,431.28 "
Nottinghamshire Fire and Rescue Service,103443,Terberg DTS UK Limited,Terberg DTS UK Limited,Management & Support Services,5,202404,17/07/2023,P6,9107367,-697.62 ,697.62 ,4007,Equipment Annual Service,2084,Engineering,581.35 
Nottinghamshire Fire and Rescue Service,103443,Terberg DTS UK Limited,Terberg DTS UK Limited,Management & Support Services,5,202404,17/07/2023,P6,9107373,"-1,915.21 ","1,915.21 ",4007,Equipment Annual Service,2084,Engineering,"1,596.01 "
Nottinghamshire Fire and Rescue Service,101890,Survitec Service & Distribution Ltd,Survitec Service & Distribution Ltd,Management & Support Services,1,202404,21/07/2023,P6,9107395,-796.55 ,796.55 ,4007,Equipment Annual Service,2084,Engineering,663.79 
Nottinghamshire Fire and Rescue Service,102307,Weber Rescue Uk Ltd,Weber Rescue Uk Ltd,Management & Support Services,1,202404,21/07/2023,P6,9107399,-806.40 ,806.40 ,4007,Equipment Annual Service,2084,Engineering,672.00 
Nottinghamshire Fire and Rescue Service,102307,Weber Rescue Uk Ltd,Weber Rescue Uk Ltd,Management & Support Services,1,202404,21/07/2023,P6,9107400,"-5,820.80 ","5,820.80 ",4007,Equipment Annual Service,2084,Engineering,"4,850.67 "
Nottinghamshire Fire and Rescue Service,103483,Risual Limited,Risual Limited,Management & Support Services,5,202404,27/06/2023,P6,9107051,-270.00 ,270.00 ,4101,Computer Software Maintenance Contracts,2097,ICT Service Operations,225.00 
Nottinghamshire Fire and Rescue Service,103582,Softcat Limited,Softcat Limited,Management & Support Services,5,202404,28/06/2023,P6,9107052,"-18,655.22 ","18,655.22 ",4101,Computer Software Maintenance Contracts,2097,ICT Service Operations,"15,546.01 "
Nottinghamshire Fire and Rescue Service,103344,Bytes Software Services Ltd,Bytes Software Services Ltd,Management & Support Services,5,202404,30/06/2023,P6,9107083,"-111,876.93 ","111,876.93 ",4101,Computer Software Maintenance Contracts,2097,ICT Service Operations,"93,230.77 "
Nottinghamshire Fire and Rescue Service,103344,Bytes Software Services Ltd,Bytes Software Services Ltd,Management & Support Services,5,202404,30/06/2023,P6,9107093,"-33,543.65 ","33,543.65 ",4101,Computer Software Maintenance Contracts,2097,ICT Service Operations,"27,953.04 "
Nottinghamshire Fire and Rescue Service,102261,Airwave Solutions Ltd,Airwave Solutions Ltd,Management & Support Services,1,202404,11/07/2023,P6,9107145,-949.78 ,949.78 ,4101,Computer Software Maintenance Contracts,2097,ICT Service Operations,791.49 
Nottinghamshire Fire and Rescue Service,104051,Moditech Rescue Solutions BV,Moditech Rescue Solutions BV,Management & Support Services,5,202404,13/07/2023,P6,9107189,"-23,100.00 ","23,100.00 ",4101,Computer Software Maintenance Contracts,2097,ICT Service Operations,"23,100.00 "
Nottinghamshire Fire and Rescue Service,104238,Darktrace Holdings Limited,Darktrace Holdings Limited,Management & Support Services,5,202404,14/07/2023,P6,9107427,"-27,878.40 ","27,878.40 ",4101,Computer Software Maintenance Contracts,2097,ICT Service Operations,"23,232.00 "
Nottinghamshire Fire and Rescue Service,103092,Daisy Corporate Services Trading Limited,Daisy Corporate Services Trading Limited,Management & Support Services,1,202404,01/07/2023,P6,9107138,"-1,825.79 ","1,825.79 ",4301,Phones - Landline,2096,ICT Service Transformation,"1,521.49 "
Nottinghamshire Fire and Rescue Service,103426,Manx Telecom,Manx Telecom,Management & Support Services,5,202404,07/07/2023,P6,9107139,-600.00 ,600.00 ,4302,Phones - Mobiles,2097,ICT Service Operations,500.00 
Nottinghamshire Fire and Rescue Service,101802,EE,EE,Management & Support Services,1,202404,01/07/2023,P6,9107248,"-3,969.72 ","3,969.72 ",4302,Phones - Mobiles,2097,ICT Service Operations,"3,308.10 "
Nottinghamshire Fire and Rescue Service,101802,EE,EE,Management & Support Services,1,202404,01/06/2023,P6,9107249,"-3,942.35 ","3,942.35 ",4302,Phones - Mobiles,2097,ICT Service Operations,"3,285.29 "
Nottinghamshire Fire and Rescue Service,102495,Rosenbauer UK Plc,Rosenbauer UK Plc,Management & Support Services,1,202404,30/06/2023,P6,9107075,"-10,325.11 ","10,325.11 ",4401,Protective Clothing,2086,Procurement,"8,604.26 "
Nottinghamshire Fire and Rescue Service,102376,Bristol Uniforms Limited,Bristol Uniforms Limited,Management & Support Services,1,202404,30/06/2023,P6,9107299,"-17,998.00 ","17,998.00 ",4402,Uniform and Protectice Clothing Repairs,2086,Procurement,"2,875.52 "
Nottinghamshire Fire and Rescue Service,102376,Bristol Uniforms Limited,Bristol Uniforms Limited,Management & Support Services,1,202404,30/06/2023,P6,9107299,"-17,998.00 ","17,998.00 ",4403,Laundry and Dry Cleaning,2086,Procurement,"12,122.81 "
Nottinghamshire Fire and Rescue Service,104055,Dry Cleaners Limited T/A National Dry Cleaners,Dry Cleaners Limited T/A National Dry Cleaners,Management & Support Services,5,202404,18/07/2023,P6,9107459,-822.18 ,822.18 ,4403,Laundry and Dry Cleaning,2086,Procurement,685.15 
Nottinghamshire Fire and Rescue Service,103678,Fitness Warehouse Limited t/a Gym Gear,Fitness Warehouse Limited t/a Gym Gear,Management & Support Services,5,202404,12/07/2023,P6,9107305,-420.00 ,420.00 ,4510,Fitness Equipment,2061,Occupational Health & Fitness,295.00 
Nottinghamshire Fire and Rescue Service,103625,Respiratory Protective Assessment Limited,Respiratory Protective Assessment Limited,Management & Support Services,5,202404,20/06/2023,P6,9107144,-747.58 ,747.58 ,4512,Medical Equipment Maintenance,2061,Occupational Health & Fitness,17.98 
Nottinghamshire Fire and Rescue Service,103625,Respiratory Protective Assessment Limited,Respiratory Protective Assessment Limited,Management & Support Services,5,202404,20/06/2023,P6,9107144,-747.58 ,747.58 ,4512,Medical Equipment Maintenance,2061,Occupational Health & Fitness,560.00 
Nottinghamshire Fire and Rescue Service,104273,Fine Foods Exchange,Fine Foods Exchange,Management & Support Services,5,202404,01/07/2023,P6,9107068,-571.20 ,571.20 ,4523,Catering/Food & Beverages,2059,Corporate Training,476.00 
Nottinghamshire Fire and Rescue Service,103695,Pulp Friction Smoothie Bar CIC,Pulp Friction Smoothie Bar CIC,Management & Support Services,5,202404,06/07/2023,P6,9107100,-342.00 ,342.00 ,4523,Catering/Food & Beverages,2073,Assurance and Risk,285.00 
Nottinghamshire Fire and Rescue Service,103358,JSMTC (Joint Service Mountain Training Centre),JSMTC (Joint Service Mountain Training Centre),Management & Support Services,5,202404,06/07/2023,P6,9107259,-277.62 ,277.62 ,4523,Catering/Food & Beverages,2059,Corporate Training,277.62 
Nottinghamshire Fire and Rescue Service,103695,Pulp Friction Smoothie Bar CIC,Pulp Friction Smoothie Bar CIC,Management & Support Services,5,202404,17/07/2023,P6,9107329,-374.40 ,374.40 ,4523,Catering/Food & Beverages,2093,Command Suite,312.00 
Nottinghamshire Fire and Rescue Service,103695,Pulp Friction Smoothie Bar CIC,Pulp Friction Smoothie Bar CIC,Management & Support Services,5,202404,21/07/2023,P6,9107387,-652.80 ,652.80 ,4523,Catering/Food & Beverages,2059,Corporate Training,544.00 
Nottinghamshire Fire and Rescue Service,101929,Selecta UK,Selecta UK,Operational Responses,1,202404,05/07/2023,P6,9107109,"-1,327.20 ","1,327.20 ",4524,Drinking Water,1001,Mansfield,"1,106.00 "
Nottinghamshire Fire and Rescue Service,101929,Selecta UK,Selecta UK,Operational Responses,1,202404,06/06/2023,P6,9107111,-292.32 ,292.32 ,4524,Drinking Water,1003,London Road,243.60 
Nottinghamshire Fire and Rescue Service,102618,FIRMIN & SONS PLC,FIRMIN & SONS PLC,Management & Support Services,1,202404,05/05/2023,P6,9107064,-465.00 ,465.00 ,4534,Carriage and Packaging,9999,Default,12.50 
Nottinghamshire Fire and Rescue Service,100468,Specialised Canvas Group,Specialised Canvas Group,Management & Support Services,1,202404,04/07/2023,P6,9107115,-645.16 ,645.16 ,4534,Carriage and Packaging,9999,Default,26.53 
Nottinghamshire Fire and Rescue Service,103625,Respiratory Protective Assessment Limited,Respiratory Protective Assessment Limited,Management & Support Services,5,202404,20/06/2023,P6,9107144,-747.58 ,747.58 ,4534,Carriage and Packaging,2061,Occupational Health & Fitness,45.00 
Nottinghamshire Fire and Rescue Service,100035,Respirex International,Respirex International,Management & Support Services,1,202404,13/07/2023,P6,9107291,-479.94 ,479.94 ,4534,Carriage and Packaging,9999,Default,15.95 
Nottinghamshire Fire and Rescue Service,103678,Fitness Warehouse Limited t/a Gym Gear,Fitness Warehouse Limited t/a Gym Gear,Management & Support Services,5,202404,12/07/2023,P6,9107305,-420.00 ,420.00 ,4534,Carriage and Packaging,2061,Occupational Health & Fitness,55.00 
Nottinghamshire Fire and Rescue Service,102508,Collins Nets Ltd,Collins Nets Ltd,Management & Support Services,1,202404,19/07/2023,P6,9107379,-260.40 ,260.40 ,4534,Carriage and Packaging,9999,Default,9.00 
Nottinghamshire Fire and Rescue Service,100468,Specialised Canvas Group,Specialised Canvas Group,Management & Support Services,1,202404,24/07/2023,P6,9107436,-645.16 ,645.16 ,4534,Carriage and Packaging,9999,Default,26.53 
Nottinghamshire Fire and Rescue Service,103443,Terberg DTS UK Limited,Terberg DTS UK Limited,Management & Support Services,5,202404,28/07/2023,P6,9107469,-466.44 ,466.44 ,4534,Carriage and Packaging,9999,Default,17.50 
Nottinghamshire Fire and Rescue Service,103449,CMT Flexibles Limited,CMT Flexibles Limited,Management & Support Services,5,202404,13/07/2023,P6,9107193,-532.06 ,532.06 ,4541,Hydrant Maintenance,2084,Engineering,443.38 
Nottinghamshire Fire and Rescue Service,103449,CMT Flexibles Limited,CMT Flexibles Limited,Management & Support Services,5,202404,13/07/2023,P6,9107254,-514.27 ,514.27 ,4541,Hydrant Maintenance,2084,Engineering,16.00 
Nottinghamshire Fire and Rescue Service,103449,CMT Flexibles Limited,CMT Flexibles Limited,Management & Support Services,5,202404,13/07/2023,P6,9107254,-514.27 ,514.27 ,4541,Hydrant Maintenance,2084,Engineering,412.56 
Nottinghamshire Fire and Rescue Service,100301,Brissco Equipment Limited,Brissco Equipment Limited,Management & Support Services,1,202404,25/07/2023,P6,9107446,-417.12 ,417.12 ,4541,Hydrant Maintenance,2084,Engineering,347.60 
Nottinghamshire Fire and Rescue Service,100301,Brissco Equipment Limited,Brissco Equipment Limited,Management & Support Services,1,202404,25/07/2023,P6,9107447,"-1,693.68 ","1,693.68 ",4541,Hydrant Maintenance,2084,Engineering,"1,411.40 "
Nottinghamshire Fire and Rescue Service,100301,Brissco Equipment Limited,Brissco Equipment Limited,Management & Support Services,1,202404,25/07/2023,P6,9107448,"-1,839.96 ","1,839.96 ",4541,Hydrant Maintenance,2084,Engineering,"1,533.30 "
Nottinghamshire Fire and Rescue Service,104115,Valentine Occupational Health Limited,Valentine Occupational Health Limited,Management & Support Services,5,202404,03/07/2023,P6,9107076,-330.00 ,330.00 ,4552,Occupational Health Costs,2061,Occupational Health & Fitness,275.00 
Nottinghamshire Fire and Rescue Service,104220,Health 2 Employment,Health 2 Employment,Management & Support Services,5,202404,03/07/2023,P6,9107078,-298.00 ,298.00 ,4552,Occupational Health Costs,2061,Occupational Health & Fitness,298.00 
Nottinghamshire Fire and Rescue Service,104232,Dr Shaun Austin Ltd,Dr Shaun Austin Ltd,Management & Support Services,10,202404,28/06/2023,P6,9107095,"-1,931.15 ","1,931.15 ",4552,Occupational Health Costs,2061,Occupational Health & Fitness,"1,931.15 "
Nottinghamshire Fire and Rescue Service,101844,Nottinghamshire Relate,Nottinghamshire Relate,Management & Support Services,1,202404,29/06/2023,P6,9107180,"-1,000.00 ","1,000.00 ",4552,Occupational Health Costs,2061,Occupational Health & Fitness,"1,000.00 "
Nottinghamshire Fire and Rescue Service,102964,Trinity Occupational and Public Health Solutions Ltd,Trinity Occupational and Public Health Solutions Ltd,Management & Support Services,5,202404,30/06/2023,P6,9107417,"-3,000.00 ","3,000.00 ",4552,Occupational Health Costs,2061,Occupational Health & Fitness,"3,000.00 "
Nottinghamshire Fire and Rescue Service,104220,Health 2 Employment,Health 2 Employment,Management & Support Services,5,202404,24/07/2023,P6,9107418,-298.00 ,298.00 ,4552,Occupational Health Costs,2061,Occupational Health & Fitness,298.00 
Nottinghamshire Fire and Rescue Service,104220,Health 2 Employment,Health 2 Employment,Management & Support Services,5,202404,17/07/2023,P6,9107419,-298.00 ,298.00 ,4552,Occupational Health Costs,2061,Occupational Health & Fitness,298.00 
Nottinghamshire Fire and Rescue Service,104220,Health 2 Employment,Health 2 Employment,Management & Support Services,5,202404,10/07/2023,P6,9107420,-894.00 ,894.00 ,4552,Occupational Health Costs,2061,Occupational Health & Fitness,894.00 
Nottinghamshire Fire and Rescue Service,103257,Midland HR,Midland HR,Management & Support Services,5,202404,30/06/2023,P6,9107228,-712.50 ,712.50 ,4554,Consultancy Fees - Non Estates Related,2058,HR Support,593.75 
Nottinghamshire Fire and Rescue Service,103582,Softcat Limited,Softcat Limited,Management & Support Services,5,202404,30/06/2023,P6,9107372,-712.50 ,712.50 ,4554,Consultancy Fees - Non Estates Related,2058,HR Support,593.75 
Nottinghamshire Fire and Rescue Service,101866,Leicestershire Fire & Rescue Service (Bacs),Leicestershire Fire & Rescue Service (Bacs),"Statutory Inspection, Certification & Enforcement",4,202404,15/06/2023,P6,9107243,513.37 ,-513.37 ,4554,Consultancy Fees - Non Estates Related,2021,Fire Protection,-427.81 
Nottinghamshire Fire and Rescue Service,103582,Softcat Limited,Softcat Limited,Management & Support Services,5,202404,26/06/2023,P6,9107244,"1,406.26 ","-1,406.26 ",4554,Consultancy Fees - Non Estates Related,2058,HR Support,"-1,171.88 "
Nottinghamshire Fire and Rescue Service,103257,Midland HR,Midland HR,Management & Support Services,5,202404,16/06/2023,P6,9107429,"2,850.05 ","-2,850.05 ",4554,Consultancy Fees - Non Estates Related,2058,HR Support,"-2,375.04 "
Nottinghamshire Fire and Rescue Service,100019,Nuffield Sailing Centre,Nuffield Sailing Centre,Management & Support Services,1,202404,17/07/2023,P6,9107324,-880.00 ,880.00 ,4561,Overnight Accomodation,2059,Corporate Training,840.00 
Nottinghamshire Fire and Rescue Service,100151,Firefighters Memorial Charitable Trust,Firefighters Memorial Charitable Trust,Management & Support Services,1,202404,06/07/2023,P6,9107258,-475.00 ,475.00 ,4581,Subscriptions,2093,Command Suite,475.00 
Nottinghamshire Fire and Rescue Service,104260,Designs Signage Solutions Ltd,Designs Signage Solutions Ltd,Operational Responses,5,202404,18/07/2023,P6,9107302,"-1,725.60 ","1,725.60 ",4583,Marketing and Publicity,1001,Mansfield,"1,438.00 "
Nottinghamshire Fire and Rescue Service,101851,Complete Business Solutions Group Ltd,Complete Business Solutions Group Ltd,Management & Support Services,1,202404,24/07/2023,P6,9107423,-560.00 ,560.00 ,4583,Marketing and Publicity,2075,Service Support Hub,560.00 
Nottinghamshire Fire and Rescue Service,101851,Complete Business Solutions Group Ltd,Complete Business Solutions Group Ltd,Management & Support Services,1,202404,26/07/2023,P6,9107455,-823.20 ,823.20 ,4583,Marketing and Publicity,2068,Prevention,686.00 
Nottinghamshire Fire and Rescue Service,101851,Complete Business Solutions Group Ltd,Complete Business Solutions Group Ltd,Management & Support Services,1,202404,26/07/2023,P6,9107467,-560.00 ,560.00 ,4583,Marketing and Publicity,2075,Service Support Hub,560.00 
Nottinghamshire Fire and Rescue Service,104286,White Ribbon UK,White Ribbon UK,Management & Support Services,5,202404,23/07/2023,P6,9107480,-396.00 ,396.00 ,4583,Marketing and Publicity,2054,Equalities Team,330.00 
Nottinghamshire Fire and Rescue Service,101190,Lyon Equipment Limited,Lyon Equipment Limited,Management & Support Services,1,202404,04/07/2023,P6,9107246,-385.03 ,385.03 ,4594,Training/ Teaching Equipment,2059,Corporate Training,320.86 
Nottinghamshire Fire and Rescue Service,104276,Motors in Motion Limited,Motors in Motion Limited,Operational Responses,5,202404,19/07/2023,P6,9107322,"-5,760.00 ","5,760.00 ",4594,Training/ Teaching Equipment,1001,Mansfield,640.00 
Nottinghamshire Fire and Rescue Service,104276,Motors in Motion Limited,Motors in Motion Limited,Operational Responses,5,202404,19/07/2023,P6,9107322,"-5,760.00 ","5,760.00 ",4594,Training/ Teaching Equipment,1005,Ashfield,640.00 
Nottinghamshire Fire and Rescue Service,104276,Motors in Motion Limited,Motors in Motion Limited,Operational Responses,5,202404,19/07/2023,P6,9107322,"-5,760.00 ","5,760.00 ",4594,Training/ Teaching Equipment,1007,Warsop,640.00 
Nottinghamshire Fire and Rescue Service,104276,Motors in Motion Limited,Motors in Motion Limited,Operational Responses,5,202404,19/07/2023,P6,9107322,"-5,760.00 ","5,760.00 ",4594,Training/ Teaching Equipment,1008,Worksop,640.00 
Nottinghamshire Fire and Rescue Service,104276,Motors in Motion Limited,Motors in Motion Limited,Operational Responses,5,202404,19/07/2023,P6,9107322,"-5,760.00 ","5,760.00 ",4594,Training/ Teaching Equipment,1010,Harworth,640.00 
Nottinghamshire Fire and Rescue Service,104276,Motors in Motion Limited,Motors in Motion Limited,Operational Responses,5,202404,19/07/2023,P6,9107322,"-5,760.00 ","5,760.00 ",4594,Training/ Teaching Equipment,1012,Retford,640.00 
Nottinghamshire Fire and Rescue Service,104276,Motors in Motion Limited,Motors in Motion Limited,Operational Responses,5,202404,19/07/2023,P6,9107322,"-5,760.00 ","5,760.00 ",4594,Training/ Teaching Equipment,1015,Collingham,320.00 
Nottinghamshire Fire and Rescue Service,104276,Motors in Motion Limited,Motors in Motion Limited,Operational Responses,5,202404,19/07/2023,P6,9107322,"-5,760.00 ","5,760.00 ",4594,Training/ Teaching Equipment,1016,Newark,640.00 
Nottinghamshire Fire and Rescue Service,104276,Motors in Motion Limited,Motors in Motion Limited,Management & Support Services,5,202404,19/07/2023,P6,9107323,"-1,152.00 ","1,152.00 ",4594,Training/ Teaching Equipment,2059,Corporate Training,960.00 
Nottinghamshire Fire and Rescue Service,104276,Motors in Motion Limited,Motors in Motion Limited,Prevention & Education,5,202404,19/07/2023,P6,9107333,-864.00 ,864.00 ,4594,Training/ Teaching Equipment,2025,"Prevention, Protection and Partnerships",320.00 
Nottinghamshire Fire and Rescue Service,104276,Motors in Motion Limited,Motors in Motion Limited,Management & Support Services,5,202404,19/07/2023,P6,9107390,-768.00 ,768.00 ,4594,Training/ Teaching Equipment,2059,Corporate Training,640.00 
Nottinghamshire Fire and Rescue Service,103849,Vision Support Services Ltd,Vision Support Services Ltd,Management & Support Services,5,202404,26/06/2023,P6,9107074,"-1,497.00 ","1,497.00 ",4600,Community Safety Delivery Consumables,2068,Prevention,"1,247.50 "
Nottinghamshire Fire and Rescue Service,104276,Motors in Motion Limited,Motors in Motion Limited,Prevention & Education,5,202404,19/07/2023,P6,9107333,-864.00 ,864.00 ,4600,Community Safety Delivery Consumables,2025,"Prevention, Protection and Partnerships",80.00 
Nottinghamshire Fire and Rescue Service,104276,Motors in Motion Limited,Motors in Motion Limited,Prevention & Education,5,202404,19/07/2023,P6,9107333,-864.00 ,864.00 ,4600,Community Safety Delivery Consumables,2025,"Prevention, Protection and Partnerships",320.00 
Nottinghamshire Fire and Rescue Service,103849,Vision Support Services Ltd,Vision Support Services Ltd,Operational Responses,5,202404,17/07/2023,P6,9107409,-347.43 ,347.43 ,4600,Community Safety Delivery Consumables,1027,Carlton,289.52 
Nottinghamshire Fire and Rescue Service,102124,East Midlands Councils,East Midlands Councils,Management & Support Services,1,202404,14/07/2023,P6,9107401,"-1,368.00 ","1,368.00 ",4621,Contribution to Partnership Working,2093,Command Suite,"1,140.00 "
Nottinghamshire Fire and Rescue Service,100334,Ashfield District Council (Council Offices),Ashfield District Council (Council Offices),Management & Support Services,4,202404,21/07/2023,P6,9107411,-654.80 ,654.80 ,4621,Contribution to Partnership Working,2065,Pan Organisation,545.67 
Nottinghamshire Fire and Rescue Service,104288,DTP Hospitality UK Ltd –Crowne Plaza Nottingham,DTP Hospitality UK Ltd –Crowne Plaza Nottingham,Management & Support Services,5,202404,18/07/2023,P6,9107414,"-1,000.00 ","1,000.00 ",4626,Gifts and Donations,2093,Command Suite,"1,000.00 "
Nottinghamshire Fire and Rescue Service,103759,Royal British Legion,Royal British Legion,Management & Support Services,5,202404,20/07/2023,P6,9107465,-825.00 ,825.00 ,4626,Gifts and Donations,2093,Command Suite,687.50 
Nottinghamshire Fire and Rescue Service,100856,Arthur J Gallagher,Arthur J Gallagher,Management & Support Services,1,202404,20/07/2023,P6,9107443,"-2,354.53 ","2,354.53 ",4890,Insurance - Other Premiums,2063,Risk Management & Insurance,"2,354.53 "
Nottinghamshire Fire and Rescue Service,100856,Arthur J Gallagher,Arthur J Gallagher,Management & Support Services,1,202404,11/07/2023,P6,9107444,"-6,027.84 ","6,027.84 ",4890,Insurance - Other Premiums,2063,Risk Management & Insurance,"6,027.84 "
Nottinghamshire Fire and Rescue Service,100856,Arthur J Gallagher,Arthur J Gallagher,Management & Support Services,1,202404,11/07/2023,P6,9107445,"-32,094.47 ","32,094.47 ",4890,Insurance - Other Premiums,2063,Risk Management & Insurance,"32,094.47 "
Nottinghamshire Fire and Rescue Service,101788,Link Treasury Services Limited,Link Treasury Services Limited,Management & Support Services,1,202404,26/07/2023,P6,9107450,-582.00 ,582.00 ,7000,Financial Services,2081,Finance,485.00 
Nottinghamshire Fire and Rescue Service,104287,Lawson West Solicitors Ltd,Lawson West Solicitors Ltd,Management & Support Services,5,202404,26/05/2023,P6,9107374,-360.00 ,360.00 ,7002,Legal Services,2049,Professional Support,300.00 
Nottinghamshire Fire and Rescue Service,104132,West Yorkshire Pension Fund,West Yorkshire Pension Fund,Management & Support Services,5,202404,08/06/2023,P6,9107079,"-43,762.49 ","43,762.49 ",7500,Treasury Services,2081,Finance,"36,468.74 "
Nottinghamshire Fire and Rescue Service,102874,NCC Pension Fund,NCC Pension Fund,Management & Support Services,1,202404,15/06/2023,P6,9107124,"-1,080.00 ","1,080.00 ",7500,Treasury Services,2081,Finance,900.00 
Nottinghamshire Fire and Rescue Service,100878,Nottinghamshire County Council,Nottinghamshire County Council,Management & Support Services,4,202404,14/07/2023,P6,9107221,"-8,553.60 ","8,553.60 ",7500,Treasury Services,1086,Corporate Core,"7,128.00 "
Nottinghamshire Fire and Rescue Service,104132,West Yorkshire Pension Fund,West Yorkshire Pension Fund,Management & Support Services,5,202404,08/06/2023,P6,9107327,"36,632.80 ","-36,632.80 ",7500,Treasury Services,2081,Finance,"-30,527.33 "
Nottinghamshire Fire and Rescue Service,103826,Cabinet office,Cabinet office,Management & Support Services,4,202404,21/03/2023,P6,9107320,"-1,190.00 ","1,190.00 ",7502,External Audit Fees,2063,Risk Management & Insurance,"1,190.00 "
Nottinghamshire Fire and Rescue Service,102618,FIRMIN & SONS PLC,FIRMIN & SONS PLC,Management & Support Services,1,202404,05/05/2023,P6,9107064,-465.00 ,465.00 ,B314,Stock,9999,Default,375.00 
Nottinghamshire Fire and Rescue Service,102190,Dot Promotional Clothing,Dot Promotional Clothing,Management & Support Services,1,202404,29/06/2023,P6,9107069,"-1,193.40 ","1,193.40 ",B314,Stock,9999,Default,994.50 
Nottinghamshire Fire and Rescue Service,102190,Dot Promotional Clothing,Dot Promotional Clothing,Management & Support Services,1,202404,06/07/2023,P6,9107096,-530.40 ,530.40 ,B314,Stock,9999,Default,442.00 
Nottinghamshire Fire and Rescue Service,100468,Specialised Canvas Group,Specialised Canvas Group,Management & Support Services,1,202404,04/07/2023,P6,9107115,-645.16 ,645.16 ,B314,Stock,9999,Default,511.10 
Nottinghamshire Fire and Rescue Service,100357,Eastern Shires Purchasing Organisation,Eastern Shires Purchasing Organisation,Management & Support Services,1,202404,04/07/2023,P6,9107117,"-1,037.58 ","1,037.58 ",B314,Stock,9999,Default,864.65 
Nottinghamshire Fire and Rescue Service,104233,Aero Healthcare Limited,Aero Healthcare Limited,Management & Support Services,5,202404,10/07/2023,P6,9107133,-272.29 ,272.29 ,B314,Stock,9999,Default,226.91 
Nottinghamshire Fire and Rescue Service,102376,Bristol Uniforms Limited,Bristol Uniforms Limited,Management & Support Services,1,202404,04/07/2023,P6,9107141,"-1,866.53 ","1,866.53 ",B314,Stock,9999,Default,"1,555.44 "
Nottinghamshire Fire and Rescue Service,102376,Bristol Uniforms Limited,Bristol Uniforms Limited,Management & Support Services,1,202404,11/07/2023,P6,9107173,"-1,770.83 ","1,770.83 ",B314,Stock,9999,Default,"1,475.69 "
Nottinghamshire Fire and Rescue Service,102376,Bristol Uniforms Limited,Bristol Uniforms Limited,Management & Support Services,1,202404,12/07/2023,P6,9107175,-720.00 ,720.00 ,B314,Stock,9999,Default,600.00 
Nottinghamshire Fire and Rescue Service,102190,Dot Promotional Clothing,Dot Promotional Clothing,Management & Support Services,1,202404,07/06/2023,P6,9107178,"-5,061.32 ","5,061.32 ",B314,Stock,9999,Default,"4,217.78 "
Nottinghamshire Fire and Rescue Service,104254,Defib4Life Limited,Defib4Life Limited,Management & Support Services,5,202404,12/07/2023,P6,9107186,-785.66 ,785.66 ,B314,Stock,9999,Default,654.72 
Nottinghamshire Fire and Rescue Service,104020,MPL (Yorkshire) Ltd,MPL (Yorkshire) Ltd,Management & Support Services,5,202404,10/07/2023,P6,9107187,-270.00 ,270.00 ,B314,Stock,9999,Default,225.00 
Nottinghamshire Fire and Rescue Service,102431,Jafco Tools,Jafco Tools,Management & Support Services,1,202404,07/07/2023,P6,9107191,"-1,688.82 ","1,688.82 ",B314,Stock,9999,Default,"1,407.35 "
Nottinghamshire Fire and Rescue Service,102190,Dot Promotional Clothing,Dot Promotional Clothing,Management & Support Services,1,202404,11/07/2023,P6,9107202,"-1,813.50 ","1,813.50 ",B314,Stock,9999,Default,"1,813.50 "
Nottinghamshire Fire and Rescue Service,102190,Dot Promotional Clothing,Dot Promotional Clothing,Management & Support Services,1,202404,13/07/2023,P6,9107213,-317.40 ,317.40 ,B314,Stock,9999,Default,264.50 
Nottinghamshire Fire and Rescue Service,102190,Dot Promotional Clothing,Dot Promotional Clothing,Management & Support Services,1,202404,13/07/2023,P6,9107215,"-1,688.57 ","1,688.57 ",B314,Stock,9999,Default,"1,407.14 "
Nottinghamshire Fire and Rescue Service,102190,Dot Promotional Clothing,Dot Promotional Clothing,Management & Support Services,1,202404,13/07/2023,P6,9107217,-288.00 ,288.00 ,B314,Stock,9999,Default,240.00 
Nottinghamshire Fire and Rescue Service,102376,Bristol Uniforms Limited,Bristol Uniforms Limited,Management & Support Services,1,202404,04/07/2023,P6,9107257,-622.18 ,622.18 ,B314,Stock,9999,Default,518.48 
Nottinghamshire Fire and Rescue Service,103981,Joseph Gleave and Son Limited -Joseph Gleave and Son (Holdings) Limited,Joseph Gleave and Son Limited -Joseph Gleave and Son (Holdings) Limited,Management & Support Services,5,202404,14/07/2023,P6,9107290,-364.82 ,364.82 ,B314,Stock,9999,Default,304.02 
Nottinghamshire Fire and Rescue Service,100035,Respirex International,Respirex International,Management & Support Services,1,202404,13/07/2023,P6,9107291,-479.94 ,479.94 ,B314,Stock,9999,Default,384.00 
Nottinghamshire Fire and Rescue Service,102376,Bristol Uniforms Limited,Bristol Uniforms Limited,Management & Support Services,1,202404,13/07/2023,P6,9107292,-904.85 ,904.85 ,B314,Stock,9999,Default,754.04 
Nottinghamshire Fire and Rescue Service,103981,Joseph Gleave and Son Limited -Joseph Gleave and Son (Holdings) Limited,Joseph Gleave and Son Limited -Joseph Gleave and Son (Holdings) Limited,Management & Support Services,5,202404,14/07/2023,P6,9107293,"-2,000.77 ","2,000.77 ",B314,Stock,9999,Default,"1,667.31 "
Nottinghamshire Fire and Rescue Service,102864,William Sugden & sons Limited,William Sugden & sons Limited,Management & Support Services,5,202404,13/07/2023,P6,9107294,-599.70 ,599.70 ,B314,Stock,9999,Default,499.75 
Nottinghamshire Fire and Rescue Service,100357,Eastern Shires Purchasing Organisation,Eastern Shires Purchasing Organisation,Management & Support Services,1,202404,17/07/2023,P6,9107321,"-1,238.16 ","1,238.16 ",B314,Stock,9999,Default,"1,031.80 "
Nottinghamshire Fire and Rescue Service,104129,Oxford Safety Supplies,Oxford Safety Supplies,Management & Support Services,5,202404,22/06/2023,P6,9107335,-545.40 ,545.40 ,B314,Stock,9999,Default,454.50 
Nottinghamshire Fire and Rescue Service,103981,Joseph Gleave and Son Limited -Joseph Gleave and Son (Holdings) Limited,Joseph Gleave and Son Limited -Joseph Gleave and Son (Holdings) Limited,Management & Support Services,5,202404,21/07/2023,P6,9107369,-520.61 ,520.61 ,B314,Stock,9999,Default,433.84 
Nottinghamshire Fire and Rescue Service,102376,Bristol Uniforms Limited,Bristol Uniforms Limited,Management & Support Services,1,202404,19/07/2023,P6,9107375,-504.72 ,504.72 ,B314,Stock,9999,Default,420.60 
Nottinghamshire Fire and Rescue Service,102376,Bristol Uniforms Limited,Bristol Uniforms Limited,Management & Support Services,1,202404,20/07/2023,P6,9107376,-933.26 ,933.26 ,B314,Stock,9999,Default,777.72 
Nottinghamshire Fire and Rescue Service,102508,Collins Nets Ltd,Collins Nets Ltd,Management & Support Services,1,202404,19/07/2023,P6,9107379,-260.40 ,260.40 ,B314,Stock,9999,Default,208.00 
Nottinghamshire Fire and Rescue Service,102101,H-Squared,H-Squared,Management & Support Services,1,202404,26/06/2023,P6,9107430,-259.20 ,259.20 ,B314,Stock,9999,Default,216.00 
Nottinghamshire Fire and Rescue Service,100468,Specialised Canvas Group,Specialised Canvas Group,Management & Support Services,1,202404,24/07/2023,P6,9107436,-645.16 ,645.16 ,B314,Stock,9999,Default,511.10 
Nottinghamshire Fire and Rescue Service,103443,Terberg DTS UK Limited,Terberg DTS UK Limited,Management & Support Services,5,202404,28/07/2023,P6,9107469,-466.44 ,466.44 ,B314,Stock,9999,Default,371.20 
Nottinghamshire Fire and Rescue Service,102376,Bristol Uniforms Limited,Bristol Uniforms Limited,Management & Support Services,1,202404,27/07/2023,P6,9107477,"-3,061.82 ","3,061.82 ",B314,Stock,9999,Default,"2,551.52 "
Nottinghamshire Fire and Rescue Service,101100,Angloco Limited,Angloco Limited,Management & Support Services,1,202404,17/07/2023,P6,9107437,"-166,378.80 ","166,378.80 ",C001,Vehicle Purchase,4000,Rescue Pump Replacement,"138,649.00 "
Nottinghamshire Fire and Rescue Service,101100,Angloco Limited,Angloco Limited,Management & Support Services,1,202404,24/07/2023,P6,9107438,"-166,378.80 ","166,378.80 ",C001,Vehicle Purchase,4000,Rescue Pump Replacement,"138,649.00 "
Nottinghamshire Fire and Rescue Service,100467,Kingsfield Computer Products Ltd,Kingsfield Computer Products Ltd,Management & Support Services,1,202404,30/06/2023,P6,9107060,"-6,948.00 ","6,948.00 ",C200,Hardware,4300,ICT Capital Programme,"5,790.00 "
Nottinghamshire Fire and Rescue Service,103483,Risual Limited,Risual Limited,Management & Support Services,5,202404,30/04/2023,P6,9107108,"-4,827.25 ","4,827.25 ",C200,Hardware,4300,ICT Capital Programme,"4,022.71 "
Nottinghamshire Fire and Rescue Service,102280,Amptron Electrical Services,Amptron Electrical Services,Management & Support Services,1,202404,30/03/2023,P6,9107128,"-9,061.64 ","9,061.64 ",C200,Hardware,4300,ICT Capital Programme,"7,551.37 "
Nottinghamshire Fire and Rescue Service,102280,Amptron Electrical Services,Amptron Electrical Services,Management & Support Services,1,202404,30/03/2023,P6,9107129,"-4,626.18 ","4,626.18 ",C200,Hardware,4300,ICT Capital Programme,"3,855.15 "
Nottinghamshire Fire and Rescue Service,103483,Risual Limited,Risual Limited,Management & Support Services,5,202404,30/06/2023,P6,9107107,"-1,140.00 ","1,140.00 ",C202,Consultancy and Services,4300,ICT Capital Programme,950.00 
Nottinghamshire Fire and Rescue Service,103094,Draeger Safety UK Limited,Draeger Safety UK Limited,Management & Support Services,5,202404,03/07/2023,P6,9107090,"-9,000.00 ","9,000.00 ",C301,Operational Equipment - Purchase,4200,Equipment Capital Programme,"7,500.00 "
Nottinghamshire Fire and Rescue Service,103094,Draeger Safety UK Limited,Draeger Safety UK Limited,Management & Support Services,5,202404,11/07/2023,P6,9107179,"-1,080.00 ","1,080.00 ",C301,Operational Equipment - Purchase,4200,Equipment Capital Programme,900.00 
,***Note:,,,,,,,,,,,,,,,
,"***The report shows the payment in its original form. This means disaggregating many invoices into individual component payments many of which will be less than £250 in their own right. This explains why you will see many of the amounts showing less than £250. They were, however, paid as part of an invoice of £250 or more.

**** The Invoice date is the date issued on the invoice. This date may fall out of the date range for the report. In most cases this is due to the invoice being received  late.",,,,,,,,,,,,,,,